Workbook

Sheet Cover page
E1: This Excel workbook has been produced The 61508 Association to support the content of the maths documents T6A041, T6A042, T6A043 and T6A044. The 61508 Association makes this document available under a Creative Commons CC BY-SA 4.0 Licence:
E2: https://creativecommons.org/licenses/by-sa/4.0/
A4: Revision | C4: Date | D4: By | E4: Comments
A7: 0.1 | C7: 2020-01-31 | D7: R Martin | E7: First draft
A8: 0.2 | C8: 2023-01-04 | D8: R Martin | E8: Added new page for simplex staggered coefficients; Moved staggered coefficients on existing sheet and changed vba code to suit Updated vba program and standard form formulae so that the common cause element for PFDu is calculated as βu.λdu.T/2N for staggered proof testing and remains as βu.λdu.T/2 for synchronised tesing. This is to reflect the fact that advice is that if a channel has been found to have failed during testing, other channels should be checked for common cause failure.
A9: 0.3 | C9: 2023-02-14 | D9: R Martin | E9: The term for PFDd has always appeared as λdd.MTTR. Normally this is very small compared to the term for PFDu (λdu.T/2) and thus becomes invisible. If during a test a fault is discovered, it follows that at the point, the fault is 'diagnosed' and the item will be out of service until it is restored - hence there is also a term λdu.MTTR which may be considered as of similar size. Also, there is the unavailability due to change out at mission time. This is not a diagnosed fault but has a similar effect on unavailability. The obvious way to handle this in the maths is to use PFDd = (λdd+λdu).MTTR. Note: where multi-channel and common cause is taen into acount, it becomes PFDd = [ (1-βd)λdd + (1-βu)λdu + 1/MT ].MTTR. Note: in most practical instances this will have negligible effect but is there to cover outliers. Calc-Sheet and vba (thus N-f) updated to mirror this.
A10: 0.4 | C10: 2023-02-22 | D10: R Martin | E10: Restore time occurs when a failure is diagnosed, when a fault is found during testing and when an item is changed out at MT. It is unlikely that the same restore time will apply to all three. Therefore MTTRD, MTTRR and MTTRU have been devised. Calc Sheet updated to suit and N-f (vba) corrected to suit. Vba udated to use more recognisable variables rather that cell references. Added 1oo3 and 2oo4 to Calc Sheet.
A11: 0.5 | C11: 2024-01-23 | D11: R Martin | E11: It was pointed out that if proof testing and replacement (or T1 and T2) are synchronised and synchronised with one another, this leads to the need for a further correction factor. This version includes that correction factor.
A12: 1.0 | C12: 2024-02-01 | D12: R Martin | E12: First issue - no change from v0.5
E41: DISCLAIMER: Whilst every effort has been made to ensure the accuracy of the information contained in this document neither “The 61508 Association” nor its members will assume any liability for any use made thereof.

Sheet Data Entry for Test
B1: https://creativecommons.org/licenses/by-sa/4.0/
A5: λd | B5: Dangerous failure rate | C5: 0.01
A6: C | B6: Dignostic Coverage Factor (λdd/λd) | C6: 0.1
A7: R | B7: Untested Factor (λdr/λd) | C7: 0.1
A8: MTTRD | B8: MTTR for diagnosed failures | C8: 0.005
A9: MTTRR | B9: MTTR for planned change out | C9: 0.005
A10: MTTRU | B10: MTTR for failures found in manual proof testing | C10: 0.005
A11: MT | B11: Mission Time (time at which part is replaced or refurbished) | C11: 5
A12: T | B12: Proof Test Interval | C12: 1
A13: βD | B13: Beta applicable to λdd | C13: 0.05
A14: βR | B14: Beta applicable to λdr | C14: 0.05
A15: βU | B15: Beta applicable to λdu | C15: 0.05
A16: SYNCU | B16: Synchronised proof testing = 1, staggered = 0 | C16: 0
A17: SYNCR | B17: Synchronised mission time change out = 1, staggered = 0 | C17: 1
A18: SYNCUR | B18: Both synchronised together | C18: 0

Sheet Calc Sheet
B1: Number (N) | C1: Fault Tolerance (f) | D1: Failure Rate (dengerous failure rate of single item) (λd) [y-1] | E1: Diagnostic Coverage (C) [no units] | F1: Residual Factor (R) [no units] | G1: Dangerous detected failure rate (λdd) [y-1] | H1: Dangerous Residual failure rate (λdr) [y-1] | I1: Dangerous undetected failure rate (λdu) [y-1] | J1: Mean Time to Restore (for diagnosed) (MTTRd) [y] | K1: Mean Time to Restore (found in test) (MTTRu) [y] | L1: Mean Time to Restore (planned change out) (MTTRr) [y] | M1: Mission Time (MT) [y] | N1: Test Interval (T) [y] | O1: Beta Factor (diagnosed) (βD) [no units] | P1: Beta Factor (residual) (βR) [no units] | Q1: Beta Factor (undiagnosed) (βU) [no units] | R1: Synchronous Proof Testing? [1/0] | S1: Synchronous Replacement? [1/0] | T1: Synchronous Proof Testing and Replacement? [1/0]
B3: N | C3: f | D3: λd | E3: C | F3: R | G3: λdd | H3: λdr | I3: λdu | J3: MTTRD | K3: MTTRR | L3: MTTRU | M3: MT | N3: T | O3: βD | P3: βR | Q3: βU | R3: SYNCU | S3: SYNCR | T3: SYNCUR
A4: PFD
A5: 1oo1 | B5: 1 | C5: 0 | D5: ='Data Entry for Test'!C5 -> 0.01 | E5: ='Data Entry for Test'!C6 -> 0.1 | F5: ='Data Entry for Test'!C7 -> 0.1 | G5: =D5*E5 -> 0.001 | H5: =D5*F5 -> 0.001 | I5: =D5-G5-H5 -> 0.008 | J5: ='Data Entry for Test'!C8 -> 0.005 | K5: ='Data Entry for Test'!C9 -> 0.005 | L5: ='Data Entry for Test'!C10 -> 0.005 | M5: ='Data Entry for Test'!C11 -> 5 | N5: ='Data Entry for Test'!C12 -> 1 | O5: ='Data Entry for Test'!C13 -> 0.05 | P5: ='Data Entry for Test'!C14 -> 0.05 | Q5: ='Data Entry for Test'!C15 -> 0.05 | R5: ='Data Entry for Test'!C16 -> 0 | S5: ='Data Entry for Test'!C17 -> 1 | T5: ='Data Entry for Test'!C18 -> 0 | U5: =G5*O5 -> 5e-05 | V5: =H5*P5 -> 5e-05 | W5: =I5*Q5 -> 0.0004 | X5: =(O5*G5)*J5 -> 2.5e-07 | Y5: =P5*H5*M5/2 -> 0.000125 | Z5: =Q5*I5*N5/(2*B5^(1-R5)) -> 0.0002 | AA5: =G5*(1-O5)*J5+I5*(1-Q5)*L5+IF(M5=0,0,K5/M5) -> 0.00104275 | AB5: =H5*M5/2 -> 0.0025 | AC5: =I5*N5/2 -> 0.004 | AD5: 1oo1 | AE5: =AA5+AB5+AC5 -> 0.00754275
A6: 1oo2 | B6: 2 | C6: 1 | D6: =D5 -> 0.01 | E6: =E5 -> 0.1 | F6: 0.1 | G6: 0.001 | H6: 0.001 | I6: 0.008 | J6: 0.005 | K6: 0.005 | L6: 0.005 | M6: 5 | N6: 1 | O6: 0.05 | P6: 0.05 | Q6: 0.05 | R6: 0 | S6: 1 | T6: 0 | U6: =G6*O6 -> 5e-05 | V6: =H6*P6 -> 5e-05 | W6: =I6*Q6 -> 0.0004 | X6: =(O6*G6)*J6 -> 2.5e-07 | Y6: =P6*H6*M6/2 -> 0.000125 | Z6: =Q6*I6*N6/(2*B6^(1-R6)) -> 0.0001 | AA6: =G6*(1-O6)*J6+I6*(1-Q6)*L6+IF(M6=0,0,K6/M6) -> 0.00104275 | AB6: =H6*(1-P6)*M6/2 -> 0.002375 | AC6: =I6*(1-Q6)*N6/2 -> 0.0038 | AD6: 1oo2 | AE6: =AA6^2+AB6^2*IF(S6=1,4/3,5/6)+AC6^2*IF(R6=1,4/3,5/6)+2*(AA6*AB6+AA6*AC6+AB6*AC6*IF(T6=1,1+N6/3/M6,1))+X6+Y6+Z6 -> 0.0002768194567
A7: 2oo3 | B7: 3 | C7: 1 | D7: =D5 -> 0.01 | E7: =E5 -> 0.1 | F7: 0.1 | G7: 0.001 | H7: 0.001 | I7: 0.008 | J7: 0.005 | K7: 0.005 | L7: 0.005 | M7: 5 | N7: 1 | O7: 0.05 | P7: 0.05 | Q7: =Q5 -> 0.05 | R7: =R5 -> 0 | S7: 1 | T7: 0 | U7: 5e-05 | V7: 5e-05 | W7: 0.0004 | X7: 2.5e-07 | Y7: 0.000125 | Z7: 6.666666667e-05 | AA7: =G7*(1-O7)*J7+I7*(1-Q7)*L7+IF(M7=0,0,K7/M7) -> 0.00104275 | AB7: =H7*(1-P7)*M7/2 -> 0.002375 | AC7: =I7*(1-Q7)*N7/2 -> 0.0038 | AD7: 2oo3 | AE7: =3*(AE6-X6-Y6-Z6)+X7+Y7+Z7 -> 0.0003466250369
A8: 1oo3 | B8: 3 | C8: 2 | D8: =D5 -> 0.01 | E8: =E5 -> 0.1 | F8: =F5 -> 0.1 | G8: =G5 -> 0.001 | H8: 0.001 | I8: 0.008 | J8: 0.005 | K8: 0.005 | L8: 0.005 | M8: 5 | N8: 1 | O8: 0.05 | P8: 0.05 | Q8: 0.05 | R8: 0 | S8: 1 | T8: 0 | U8: 5e-05 | V8: 5e-05 | W8: 0.0004 | X8: 2.5e-07 | Y8: 0.000125 | Z8: 6.666666667e-05 | AA8: 0.00104275 | AB8: 0.002375 | AC8: 0.0038 | AD8: 1oo3 | AE8: =AA8^3+AC8^3*IF(R8=1,2,2/3)+AB8^3*IF(S8=1,2,2/3)+3*AA8^2*(AC8+AB8)+3*AC8^2*IF(R8=1,4/3,5/6)*(AA8+AB8*IF(T8=1,1+N8/2/M8,1))+3*AB8^2*IF(S8=1,4/3,5/6)*(AA8+AC8*IF(T8=1,1+N8/2/M8,1))+6*AA8*AB8*AC8*IF(T8=1,1+N8/3/M8,1)+X8+Z8+Y8 -> 0.0001922904278
A9: 2oo4 | B9: 4 | C9: 2 | D9: =D5 -> 0.01 | E9: =E5 -> 0.1 | F9: =F5 -> 0.1 | G9: =G5 -> 0.001 | H9: 0.001 | I9: 0.008 | J9: 0.005 | K9: 0.005 | L9: 0.005 | M9: 5 | N9: 1 | O9: 0.05 | P9: 0.05 | Q9: 0.05 | R9: 0 | S9: 1 | T9: 0 | U9: =G9*O9 -> 5e-05 | V9: 5e-05 | W9: 0.0004 | X9: 2.5e-07 | Y9: 0.000125 | Z9: 5e-05 | AA9: 0.00104275 | AB9: 0.002375 | AC9: 0.0038 | AD9: 2oo4 | AE9: =4*(AA9^3+AC9^3*IF(R9=1,2,2/3)+AB9^3*IF(S9=1,2,2/3)+3*AA9^2*(AC9+AB9)+3*AC9^2*IF(R9=1,4/3,5/6)*(AA9+AB9*IF(T9=1,1+N9/2/M9,1))+3*AB9^2*IF(S9=1,4/3,5/6)*(AA9+AC9*IF(T9=1,1+N9/2/M9,1))+6*AA9*AB9*AC9*IF(T9=1,1+N9/3/M9,1))+X9+Z9+Y9 -> 0.0001767450444
A11: λ
A12: 1oo1 | B12: 1 | C12: 0 | D12: =D5 -> 0.01 | E12: =E5 -> 0.1 | F12: 0.1 | G12: 0.001 | H12: 0.001 | I12: 0.008 | J12: 0.005 | K12: 0.005 | L12: 0.005 | M12: 5 | N12: 1 | O12: 0.05 | P12: 0.05 | Q12: 0.05 | R12: 0 | S12: 1 | T12: 0 | U12: =G12*O12 -> 5e-05 | V12: =H12*P12 -> 5e-05 | W12: =I12*Q12 -> 0.0004 | X12: =(O12*G12)*J12 -> 2.5e-07 | Y12: =P12*H12*M12/2 -> 0.000125 | Z12: =Q12*I12*N12/(2*B12^(1-R12)) -> 0.0002 | AA12: =AA5 -> 0.00104275 | AB12: =AB5 -> 0.0025 | AC12: =AC5 -> 0.004 | AD12: 1oo1 | AE12: =D12 -> 0.01
A13: 1oo2 | B13: 2 | C13: 1 | D13: =D5 -> 0.01 | E13: =E5 -> 0.1 | F13: 0.1 | G13: 0.001 | H13: 0.001 | I13: 0.008 | J13: 0.005 | K13: 0.005 | L13: 0.005 | M13: 5 | N13: 1 | O13: 0.05 | P13: 0.05 | Q13: 0.05 | R13: 0 | S13: 1 | T13: 0 | U13: 5e-05 | V13: 5e-05 | W13: 0.0004 | X13: =(O13*G13)*J13 -> 2.5e-07 | Y13: =P13*H13*M13/2 -> 0.000125 | Z13: =Q13*I13*N13/(2*B13^(1-R13)) -> 0.0001 | AA13: =AA6 -> 0.00104275 | AB13: 0.002375 | AC13: 0.0038 | AD13: 1oo2 | AE13: =2*D13*(AA13+AB13+AC13)+U13+V13+W13 -> 0.000644355
A14: 2oo3 | B14: 3 | C14: 1 | D14: =D5 -> 0.01 | E14: =E5 -> 0.1 | F14: 0.1 | G14: 0.001 | H14: 0.001 | I14: 0.008 | J14: 0.005 | K14: 0.005 | L14: 0.005 | M14: 5 | N14: 1 | O14: 0.05 | P14: 0.05 | Q14: 0.05 | R14: 0 | S14: 1 | T14: 0 | U14: 5e-05 | V14: 5e-05 | W14: 0.0004 | X14: 2.5e-07 | Y14: 0.000125 | Z14: 6.666666667e-05 | AA14: =AA7 -> 0.00104275 | AB14: 0.002375 | AC14: 0.0038 | AD14: 2oo3 | AE14: =6*D14*(AE5-X5-Y5-Z5)+U14+V14+W14 -> 0.00093305
A15: 1oo3 | B15: 3 | C15: 2 | D15: =D5 -> 0.01 | E15: =E5 -> 0.1 | F15: 0.1 | G15: 0.001 | H15: 0.001 | I15: 0.008 | J15: 0.005 | K15: 0.005 | L15: 0.005 | M15: 5 | N15: 1 | O15: 0.05 | P15: 0.05 | Q15: 0.05 | R15: 0 | S15: 1 | T15: 0 | U15: 5e-05 | V15: 5e-05 | W15: 0.0004 | X15: 2.5e-07 | Y15: 0.000125 | Z15: 6.666666667e-05 | AA15: =AA8 -> 0.00104275 | AB15: 0.002375 | AC15: 0.0038 | AD15: 1oo3 | AE15: =3*D15*(AE6-X6-Y6-Z6)+U15+V15+W15 -> 0.0005015470837
A16: 2oo4 | B16: 4 | C16: 2 | D16: =D5 -> 0.01 | E16: =E5 -> 0.1 | F16: 0.1 | G16: 0.001 | H16: 0.001 | I16: 0.008 | J16: 0.005 | K16: 0.005 | L16: 0.005 | M16: 5 | N16: 1 | O16: 0.05 | P16: 0.05 | Q16: 0.05 | R16: 0 | S16: 1 | T16: 0 | U16: 5e-05 | V16: 5e-05 | W16: 0.0004 | X16: 2.5e-07 | Y16: 0.000125 | Z16: 5e-05 | AA16: =AA9 -> 0.00104275 | AB16: 0.002375 | AC16: 0.0038 | AD16: 2oo4 | AE16: =4*D16*(AE7-X7-Y7-Z7)+U16+V16+W16 -> 0.0005061883348
B19: N | C19: f | D19: λd | E19: C | F19: R | G19: λdd | H19: λdr | I19: λdu | J19: MTTRD | K19: MTTRR | L19: MTTRU | M19: MT | N19: T | O19: βD | P19: βR | Q19: βU | R19: SYNCU | S19: SYNCR | T19: SYNCUR
A20: PFD
A21: 1oo1 | B21: 1 | C21: 0 | D21: ='Data Entry for Test'!C21 -> 0 | E21: ='Data Entry for Test'!C22 -> 0 | F21: ='Data Entry for Test'!C23 -> 0 | G21: =D21*E21 -> 0 | H21: =D21*F21 -> 0 | I21: =D21-G21-H21 -> 0 | J21: ='Data Entry for Test'!C24 -> 0 | K21: ='Data Entry for Test'!C25 -> 0 | L21: ='Data Entry for Test'!C26 -> 0 | M21: ='Data Entry for Test'!C27 -> 0 | N21: ='Data Entry for Test'!C28 -> 0 | O21: ='Data Entry for Test'!C29 -> 0 | P21: ='Data Entry for Test'!C30 -> 0 | Q21: ='Data Entry for Test'!C31 -> 0 | R21: ='Data Entry for Test'!C32 -> 0 | S21: ='Data Entry for Test'!C33 -> 0 | T21: ='Data Entry for Test'!C34 -> 0 | U21: =G21*O21 -> 0 | V21: =H21*P21 -> 0 | W21: =I21*Q21 -> 0 | X21: =(O21*G21)*J21 -> 0 | Y21: =P21*H21*M21/2 -> 0 | Z21: =Q21*I21*N21/(2*B21^(1-R21)) -> 0 | AA21: =G21*J21+I21*L21+IF(M21=0,0,K21/M21) -> 0 | AB21: =H21*M21/2 -> 0 | AC21: =I21*N21/2 -> 0 | AD21: 1oo1 | AE21: =AA21+AB21+AC21 -> 0
A22: 1oo2 | B22: 2 | C22: 1 | D22: =D21 -> 0 | E22: =E21 -> 0 | F22: 0 | G22: 0 | H22: 0 | I22: 0 | J22: 0 | K22: 0 | L22: 0 | M22: 0 | N22: 0 | O22: 0 | P22: 0 | Q22: 0 | R22: 0 | S22: 0 | T22: 0 | U22: 0 | V22: 0 | W22: 0 | X22: 0 | Y22: 0 | Z22: =Q22*I22*N22/(2*B22^(1-R22)) -> 0 | AA22: =G22*(1-O22)*J22+I22*(1-Q22)*L22+IF(M22=0,0,K22/M22) -> 0 | AB22: =H22*(1-P22)*M22/2 -> 0 | AC22: =I22*(1-Q22)*N22/2 -> 0 | AD22: 1oo2 | AE22: =AA22^2+AB22^2*IF(S22=1,4/3,5/6)+AC22^2*IF(R22=1,4/3,5/6)+2*(AA22*AB22+AA22*AC22+AB22*AC22*IF(T22=1,1+N22/3/M22,1))+X22+Y22+Z22 -> 0
A23: 2oo3 | B23: 3 | C23: 1 | D23: =D21 -> 0 | E23: =E21 -> 0 | F23: 0 | G23: 0 | H23: 0 | I23: 0 | J23: 0 | K23: 0 | L23: 0 | M23: 0 | N23: 0 | O23: 0 | P23: 0 | Q23: =Q21 -> 0 | R23: =R21 -> 0 | S23: 0 | T23: 0 | U23: 0 | V23: 0 | W23: 0 | X23: 0 | Y23: 0 | Z23: 0 | AA23: =G23*(1-O23)*J23+I23*(1-Q23)*L23+IF(M23=0,0,K23/M23) -> 0 | AB23: =H23*(1-P23)*M23/2 -> 0 | AC23: =I23*(1-Q23)*N23/2 -> 0 | AD23: 2oo3 | AE23: =3*(AE22-X22-Y22-Z22)+X23+Y23+Z23 -> 0
A24: 1oo3 | B24: 3 | C24: 2 | D24: =D21 -> 0 | E24: =E21 -> 0 | F24: =F21 -> 0 | G24: =G21 -> 0 | H24: 0 | I24: 0 | J24: 0 | K24: 0 | L24: 0 | M24: 0 | N24: 0 | O24: 0 | P24: 0 | Q24: 0 | R24: 0 | S24: 0 | T24: 0 | U24: =U21 -> 0 | V24: =V21 -> 0 | W24: 0 | X24: 0 | Y24: 0 | Z24: 0 | AA24: 0 | AB24: 0 | AC24: 0 | AD24: 1oo3 | AE24: =AA24^3+AC24^3*IF(R24=1,2,2/3)+AB24^3*IF(S24=1,2,2/3)+3*AA24^2*(AC24+AB24)+3*AC24^2*IF(R24=1,4/3,5/6)*(AA24+AB24*IF(T24=1,1+N24/2/M24,1))+3*AB24^2*IF(S24=1,4/3,5/6)*(AA24+AC24*IF(T24=1,1+N24/2/M24,1))+6*AA24*AB24*AC24*IF(T24=1,1+N24/3/M24,1)+X24+Z24+Y24 -> 0
A25: 2oo4 | B25: 4 | C25: 2 | D25: =D21 -> 0 | E25: =E21 -> 0 | F25: =F21 -> 0 | G25: =G21 -> 0 | H25: 0 | I25: 0 | J25: 0 | K25: 0 | L25: 0 | M25: 0 | N25: 0 | O25: 0 | P25: 0 | Q25: 0 | R25: 0 | S25: 0 | T25: 0 | U25: =U21 -> 0 | V25: =V21 -> 0 | W25: 0 | X25: 0 | Y25: 0 | Z25: 0 | AA25: 0 | AB25: 0 | AC25: 0 | AD25: 2oo4 | AE25: =4*(AA25^3+AC25^3*IF(R25=1,2,2/3)+AB25^3*IF(S25=1,2,2/3)+3*AA25^2*(AC25+AB25)+3*AC25^2*IF(R25=1,4/3,5/6)*(AA25+AB25*IF(T25=1,1+N25/2/M25,1))+3*AB25^2*IF(S25=1,4/3,5/6)*(AA25+AC25*IF(T25=1,1+N25/2/M25,1))+6*AA25*AB25*AC25*IF(T25=1,1+N25/3/M25,1))+X25+Z25+Y25 -> 0
A27: λ
A28: 1oo1 | B28: 1 | C28: 0 | D28: =D21 -> 0 | E28: =E21 -> 0 | F28: 0 | G28: 0 | H28: 0 | I28: 0 | J28: 0 | K28: 0 | L28: 0 | M28: 0 | N28: 0 | O28: 0 | P28: 0 | Q28: 0 | R28: 0 | S28: 0 | T28: 0 | U28: 0 | V28: 0 | W28: 0 | X28: 0 | Y28: 0 | Z28: =Z21 -> 0 | AA28: =AA21 -> 0 | AB28: =AB21 -> 0 | AC28: =AC21 -> 0 | AD28: 1oo1 | AE28: =D28 -> 0
A29: 1oo2 | B29: 2 | C29: 1 | D29: =D21 -> 0 | E29: =E21 -> 0 | F29: 0 | G29: 0 | H29: 0 | I29: 0 | J29: 0 | K29: 0 | L29: 0 | M29: 0 | N29: 0 | O29: 0 | P29: 0 | Q29: 0 | R29: 0 | S29: 0 | T29: 0 | U29: 0 | V29: 0 | W29: 0 | X29: 0 | Y29: 0 | Z29: =Z22 -> 0 | AA29: 0 | AB29: 0 | AC29: 0 | AD29: 1oo2 | AE29: =2*D29*(AA29+AB29+AC29)+U29+V29+W29 -> 0
A30: 2oo3 | B30: 3 | C30: 1 | D30: =D21 -> 0 | E30: =E21 -> 0 | F30: 0 | G30: 0 | H30: 0 | I30: 0 | J30: 0 | K30: 0 | L30: 0 | M30: 0 | N30: 0 | O30: 0 | P30: 0 | Q30: 0 | R30: 0 | S30: 0 | T30: 0 | U30: 0 | V30: 0 | W30: 0 | X30: 0 | Y30: 0 | Z30: =Z23 -> 0 | AA30: 0 | AB30: 0 | AC30: 0 | AD30: 2oo3 | AE30: =6*D30*(AE21-X21-Y21-Z21)+U30+V30+W30 -> 0
A31: 1oo3 | B31: 3 | C31: 2 | D31: =D21 -> 0 | E31: =E21 -> 0 | F31: 0 | G31: 0 | H31: 0 | I31: 0 | J31: 0 | K31: 0 | L31: 0 | M31: 0 | N31: 0 | O31: 0 | P31: 0 | Q31: 0 | R31: 0 | S31: 0 | T31: 0 | U31: =U21 -> 0 | V31: =V21 -> 0 | W31: 0 | X31: 0 | Y31: 0 | Z31: =Z24 -> 0 | AA31: 0 | AB31: 0 | AC31: 0 | AD31: 1oo3 | AE31: =3*D31*(AE22-X22-Y22-Z22)+U31+V31+W31 -> 0
A32: 2oo4 | B32: 4 | C32: 2 | D32: =D21 -> 0 | E32: =E21 -> 0 | F32: 0 | G32: 0 | H32: 0 | I32: 0 | J32: 0 | K32: 0 | L32: 0 | M32: 0 | N32: 0 | O32: 0 | P32: 0 | Q32: 0 | R32: 0 | S32: 0 | T32: 0 | U32: =U21 -> 0 | V32: =V21 -> 0 | W32: 0 | X32: 0 | Y32: 0 | Z32: =Z25 -> 0 | AA32: 0 | AB32: 0 | AC32: 0 | AD32: 2oo4 | AE32: =4*D32*(AE23-X23-Y23-Z23)+U32+V32+W32 -> 0
B35: N | C35: f | D35: λd | E35: C | F35: R | G35: λdd | H35: λdr | I35: λdu | J35: MTTRD | K35: MTTRR | L35: MTTRU | M35: MT | N35: T | O35: βD | P35: βR | Q35: βU | R35: SYNCU | S35: SYNCR | T35: SYNCUR
A36: PFD
A37: 1oo1 | B37: 1 | C37: 0 | D37: ='Data Entry for Test'!C37 -> 0 | E37: ='Data Entry for Test'!C38 -> 0 | F37: ='Data Entry for Test'!C39 -> 0 | G37: =D37*E37 -> 0 | H37: =D37*F37 -> 0 | I37: =D37-G37-H37 -> 0 | J37: ='Data Entry for Test'!C40 -> 0 | K37: ='Data Entry for Test'!C41 -> 0 | L37: ='Data Entry for Test'!C42 -> 0 | M37: ='Data Entry for Test'!C43 -> 0 | N37: ='Data Entry for Test'!C44 -> 0 | O37: ='Data Entry for Test'!C45 -> 0 | P37: ='Data Entry for Test'!C46 -> 0 | Q37: ='Data Entry for Test'!C47 -> 0 | R37: ='Data Entry for Test'!C48 -> 0 | S37: ='Data Entry for Test'!C49 -> 0 | T37: ='Data Entry for Test'!C50 -> 0 | U37: =G37*O37 -> 0 | V37: =H37*P37 -> 0 | W37: =I37*Q37 -> 0 | X37: =(O37*G37)*J37 -> 0 | Y37: =P37*H37*M37/2 -> 0 | Z37: =Q37*I37*N37/(2*B37^(1-R37)) -> 0 | AA37: =G37*J37+I37*L37+IF(M37=0,0,K37/M37) -> 0 | AB37: =H37*M37/2 -> 0 | AC37: =I37*N37/2 -> 0 | AD37: 1oo1 | AE37: =AA37+AB37+AC37 -> 0
A38: 1oo2 | B38: 2 | C38: 1 | D38: =D37 -> 0 | E38: =E37 -> 0 | F38: 0 | G38: 0 | H38: 0 | I38: 0 | J38: 0 | K38: 0 | L38: 0 | M38: 0 | N38: 0 | O38: 0 | P38: 0 | Q38: 0 | R38: 0 | S38: 0 | T38: 0 | U38: 0 | V38: 0 | W38: 0 | X38: 0 | Y38: 0 | Z38: =Q38*I38*N38/(2*B38^(1-R38)) -> 0 | AA38: =G38*(1-O38)*J38+I38*(1-Q38)*L38+IF(M38=0,0,K38/M38) -> 0 | AB38: =H38*(1-P38)*M38/2 -> 0 | AC38: =I38*(1-Q38)*N38/2 -> 0 | AD38: 1oo2 | AE38: =AA38^2+AB38^2*IF(S38=1,4/3,5/6)+AC38^2*IF(R38=1,4/3,5/6)+2*(AA38*AB38+AA38*AC38+AB38*AC38*IF(T38=1,1+N38/3/M38,1))+X38+Y38+Z38 -> 0
A39: 2oo3 | B39: 3 | C39: 1 | D39: =D37 -> 0 | E39: =E37 -> 0 | F39: 0 | G39: 0 | H39: 0 | I39: 0 | J39: 0 | K39: 0 | L39: 0 | M39: 0 | N39: 0 | O39: 0 | P39: 0 | Q39: =Q37 -> 0 | R39: =R37 -> 0 | S39: 0 | T39: 0 | U39: 0 | V39: 0 | W39: 0 | X39: 0 | Y39: 0 | Z39: 0 | AA39: =G39*(1-O39)*J39+I39*(1-Q39)*L39+IF(M39=0,0,K39/M39) -> 0 | AB39: =H39*(1-P39)*M39/2 -> 0 | AC39: =I39*(1-Q39)*N39/2 -> 0 | AD39: 2oo3 | AE39: =3*(AE38-X38-Y38-Z38)+X39+Y39+Z39 -> 0
A40: 1oo3 | B40: 3 | C40: 2 | D40: =D37 -> 0 | E40: =E37 -> 0 | F40: =F37 -> 0 | G40: =G37 -> 0 | H40: 0 | I40: 0 | J40: 0 | K40: 0 | L40: 0 | M40: 0 | N40: 0 | O40: 0 | P40: 0 | Q40: 0 | R40: 0 | S40: 0 | T40: 0 | U40: =U37 -> 0 | V40: =V37 -> 0 | W40: 0 | X40: 0 | Y40: 0 | Z40: 0 | AA40: 0 | AB40: 0 | AC40: 0 | AD40: 1oo3 | AE40: =AA40^3+AC40^3*IF(R40=1,2,2/3)+AB40^3*IF(S40=1,2,2/3)+3*AA40^2*(AC40+AB40)+3*AC40^2*IF(R40=1,4/3,5/6)*(AA40+AB40*IF(T40=1,1+N40/2/M40,1))+3*AB40^2*IF(S40=1,4/3,5/6)*(AA40+AC40*IF(T40=1,1+N40/2/M40,1))+6*AA40*AB40*AC40*IF(T40=1,1+N40/3/M40,1)+X40+Z40+Y40 -> 0
A41: 2oo4 | B41: 4 | C41: 2 | D41: =D37 -> 0 | E41: =E37 -> 0 | F41: =F37 -> 0 | G41: =G37 -> 0 | H41: 0 | I41: 0 | J41: 0 | K41: 0 | L41: 0 | M41: 0 | N41: 0 | O41: 0 | P41: 0 | Q41: 0 | R41: 0 | S41: 0 | T41: 0 | U41: =U37 -> 0 | V41: =V37 -> 0 | W41: 0 | X41: 0 | Y41: 0 | Z41: 0 | AA41: 0 | AB41: 0 | AC41: 0 | AD41: 2oo4 | AE41: =4*(AA41^3+AC41^3*IF(R41=1,2,2/3)+AB41^3*IF(S41=1,2,2/3)+3*AA41^2*(AC41+AB41)+3*AC41^2*IF(R41=1,4/3,5/6)*(AA41+AB41*IF(T41=1,1+N41/2/M41,1))+3*AB41^2*IF(S41=1,4/3,5/6)*(AA41+AC41*IF(T41=1,1+N41/2/M41,1))+6*AA41*AB41*AC41*IF(T41=1,1+N41/3/M41,1))+X41+Z41+Y41 -> 0
A43: λ
A44: 1oo1 | B44: 1 | C44: 0 | D44: =D37 -> 0 | E44: =E37 -> 0 | F44: 0 | G44: 0 | H44: 0 | I44: 0 | J44: 0 | K44: 0 | L44: 0 | M44: 0 | N44: 0 | O44: 0 | P44: 0 | Q44: 0 | R44: 0 | S44: 0 | T44: 0 | U44: 0 | V44: 0 | W44: 0 | X44: 0 | Y44: 0 | Z44: =Z37 -> 0 | AA44: =AA37 -> 0 | AB44: =AB37 -> 0 | AC44: =AC37 -> 0 | AD44: 1oo1 | AE44: =D44 -> 0
A45: 1oo2 | B45: 2 | C45: 1 | D45: =D37 -> 0 | E45: =E37 -> 0 | F45: 0 | G45: 0 | H45: 0 | I45: 0 | J45: 0 | K45: 0 | L45: 0 | M45: 0 | N45: 0 | O45: 0 | P45: 0 | Q45: 0 | R45: 0 | S45: 0 | T45: 0 | U45: 0 | V45: 0 | W45: 0 | X45: 0 | Y45: 0 | Z45: =Z38 -> 0 | AA45: 0 | AB45: 0 | AC45: 0 | AD45: 1oo2 | AE45: =2*D45*(AA45+AB45+AC45)+U45+V45+W45 -> 0
A46: 2oo3 | B46: 3 | C46: 1 | D46: =D37 -> 0 | E46: =E37 -> 0 | F46: 0 | G46: 0 | H46: 0 | I46: 0 | J46: 0 | K46: 0 | L46: 0 | M46: 0 | N46: 0 | O46: 0 | P46: 0 | Q46: 0 | R46: 0 | S46: 0 | T46: 0 | U46: 0 | V46: 0 | W46: 0 | X46: 0 | Y46: 0 | Z46: =Z39 -> 0 | AA46: 0 | AB46: 0 | AC46: 0 | AD46: 2oo3 | AE46: =6*D46*(AE37-X37-Y37-Z37)+U46+V46+W46 -> 0
A47: 1oo3 | B47: 3 | C47: 2 | D47: =D37 -> 0 | E47: =E37 -> 0 | F47: 0 | G47: 0 | H47: 0 | I47: 0 | J47: 0 | K47: 0 | L47: 0 | M47: 0 | N47: 0 | O47: 0 | P47: 0 | Q47: 0 | R47: 0 | S47: 0 | T47: 0 | U47: =U37 -> 0 | V47: =V37 -> 0 | W47: 0 | X47: 0 | Y47: 0 | Z47: =Z40 -> 0 | AA47: 0 | AB47: 0 | AC47: 0 | AD47: 1oo3 | AE47: =3*D47*(AE38-X38-Y38-Z38)+U47+V47+W47 -> 0
A48: 2oo4 | B48: 4 | C48: 2 | D48: =D37 -> 0 | E48: =E37 -> 0 | F48: 0 | G48: 0 | H48: 0 | I48: 0 | J48: 0 | K48: 0 | L48: 0 | M48: 0 | N48: 0 | O48: 0 | P48: 0 | Q48: 0 | R48: 0 | S48: 0 | T48: 0 | U48: =U37 -> 0 | V48: =V37 -> 0 | W48: 0 | X48: 0 | Y48: 0 | Z48: =Z41 -> 0 | AA48: 0 | AB48: 0 | AC48: 0 | AD48: 2oo4 | AE48: =4*D48*(AE39-X39-Y39-Z39)+U48+V48+W48 -> 0
B51: N | C51: f | D51: λd | E51: C | F51: R | G51: λdd | H51: λdr | I51: λdu | J51: MTTRD | K51: MTTRR | L51: MTTRU | M51: MT | N51: T | O51: βD | P51: βR | Q51: βU | R51: SYNCU | S51: SYNCR | T51: SYNCUR
A52: PFD
A53: 1oo1 | B53: 1 | C53: 0 | D53: ='Data Entry for Test'!C53 -> 0 | E53: ='Data Entry for Test'!C54 -> 0 | F53: ='Data Entry for Test'!C55 -> 0 | G53: =D53*E53 -> 0 | H53: =D53*F53 -> 0 | I53: =D53-G53-H53 -> 0 | J53: ='Data Entry for Test'!C56 -> 0 | K53: ='Data Entry for Test'!C57 -> 0 | L53: ='Data Entry for Test'!C58 -> 0 | M53: ='Data Entry for Test'!C59 -> 0 | N53: ='Data Entry for Test'!C60 -> 0 | O53: ='Data Entry for Test'!C61 -> 0 | P53: ='Data Entry for Test'!C62 -> 0 | Q53: ='Data Entry for Test'!C63 -> 0 | R53: ='Data Entry for Test'!C64 -> 0 | S53: ='Data Entry for Test'!C65 -> 0 | T53: ='Data Entry for Test'!C66 -> 0 | U53: =G53*O53 -> 0 | V53: =H53*P53 -> 0 | W53: =I53*Q53 -> 0 | X53: =(O53*G53)*J53 -> 0 | Y53: =P53*H53*M53/2 -> 0 | Z53: =Q53*I53*N53/(2*B53^(1-R53)) -> 0 | AA53: =G53*J53+I53*L53+IF(M53=0,0,K53/M53) -> 0 | AB53: =H53*M53/2 -> 0 | AC53: =I53*N53/2 -> 0 | AD53: 1oo1 | AE53: =AA53+AB53+AC53 -> 0
A54: 1oo2 | B54: 2 | C54: 1 | D54: =D53 -> 0 | E54: =E53 -> 0 | F54: 0 | G54: 0 | H54: 0 | I54: 0 | J54: 0 | K54: 0 | L54: 0 | M54: 0 | N54: 0 | O54: 0 | P54: 0 | Q54: 0 | R54: 0 | S54: 0 | T54: 0 | U54: 0 | V54: 0 | W54: 0 | X54: 0 | Y54: 0 | Z54: =Q54*I54*N54/(2*B54^(1-R54)) -> 0 | AA54: =G54*(1-O54)*J54+I54*(1-Q54)*L54+IF(M54=0,0,K54/M54) -> 0 | AB54: =H54*(1-P54)*M54/2 -> 0 | AC54: =I54*(1-Q54)*N54/2 -> 0 | AD54: 1oo2 | AE54: =AA54^2+AB54^2*IF(S54=1,4/3,5/6)+AC54^2*IF(R54=1,4/3,5/6)+2*(AA54*AB54+AA54*AC54+AB54*AC54*IF(T54=1,1+N54/3/M54,1))+X54+Y54+Z54 -> 0
A55: 2oo3 | B55: 3 | C55: 1 | D55: =D53 -> 0 | E55: =E53 -> 0 | F55: 0 | G55: 0 | H55: 0 | I55: 0 | J55: 0 | K55: 0 | L55: 0 | M55: 0 | N55: 0 | O55: 0 | P55: 0 | Q55: =Q53 -> 0 | R55: =R53 -> 0 | S55: 0 | T55: 0 | U55: 0 | V55: 0 | W55: 0 | X55: 0 | Y55: 0 | Z55: 0 | AA55: =G55*(1-O55)*J55+I55*(1-Q55)*L55+IF(M55=0,0,K55/M55) -> 0 | AB55: =H55*(1-P55)*M55/2 -> 0 | AC55: =I55*(1-Q55)*N55/2 -> 0 | AD55: 2oo3 | AE55: =3*(AE54-X54-Y54-Z54)+X55+Y55+Z55 -> 0
A56: 1oo3 | B56: 3 | C56: 2 | D56: =D53 -> 0 | E56: =E53 -> 0 | F56: =F53 -> 0 | G56: =G53 -> 0 | H56: 0 | I56: 0 | J56: 0 | K56: 0 | L56: 0 | M56: 0 | N56: 0 | O56: 0 | P56: 0 | Q56: 0 | R56: 0 | S56: 0 | T56: 0 | U56: =U53 -> 0 | V56: =V53 -> 0 | W56: 0 | X56: 0 | Y56: 0 | Z56: 0 | AA56: 0 | AB56: 0 | AC56: 0 | AD56: 1oo3 | AE56: =AA56^3+AC56^3*IF(R56=1,2,2/3)+AB56^3*IF(S56=1,2,2/3)+3*AA56^2*(AC56+AB56)+3*AC56^2*IF(R56=1,4/3,5/6)*(AA56+AB56*IF(T56=1,1+N56/2/M56,1))+3*AB56^2*IF(S56=1,4/3,5/6)*(AA56+AC56*IF(T56=1,1+N56/2/M56,1))+6*AA56*AB56*AC56*IF(T56=1,1+N56/3/M56,1)+X56+Z56+Y56 -> 0
A57: 2oo4 | B57: 4 | C57: 2 | D57: =D53 -> 0 | E57: =E53 -> 0 | F57: =F53 -> 0 | G57: =G53 -> 0 | H57: 0 | I57: 0 | J57: 0 | K57: 0 | L57: 0 | M57: 0 | N57: 0 | O57: 0 | P57: 0 | Q57: 0 | R57: 0 | S57: 0 | T57: 0 | U57: =U53 -> 0 | V57: =V53 -> 0 | W57: 0 | X57: 0 | Y57: 0 | Z57: 0 | AA57: 0 | AB57: 0 | AC57: 0 | AD57: 2oo4 | AE57: =4*(AA57^3+AC57^3*IF(R57=1,2,2/3)+AB57^3*IF(S57=1,2,2/3)+3*AA57^2*(AC57+AB57)+3*AC57^2*IF(R57=1,4/3,5/6)*(AA57+AB57*IF(T57=1,1+N57/2/M57,1))+3*AB57^2*IF(S57=1,4/3,5/6)*(AA57+AC57*IF(T57=1,1+N57/2/M57,1))+6*AA57*AB57*AC57*IF(T57=1,1+N57/3/M57,1))+X57+Z57+Y57 -> 0
A59: λ
A60: 1oo1 | B60: 1 | C60: 0 | D60: =D53 -> 0 | E60: =E53 -> 0 | F60: 0 | G60: 0 | H60: 0 | I60: 0 | J60: 0 | K60: 0 | L60: 0 | M60: 0 | N60: 0 | O60: 0 | P60: 0 | Q60: 0 | R60: 0 | S60: 0 | T60: 0 | U60: 0 | V60: 0 | W60: 0 | X60: 0 | Y60: 0 | Z60: =Z53 -> 0 | AA60: =AA53 -> 0 | AB60: =AB53 -> 0 | AC60: =AC53 -> 0 | AD60: 1oo1 | AE60: =D60 -> 0
A61: 1oo2 | B61: 2 | C61: 1 | D61: =D53 -> 0 | E61: =E53 -> 0 | F61: 0 | G61: 0 | H61: 0 | I61: 0 | J61: 0 | K61: 0 | L61: 0 | M61: 0 | N61: 0 | O61: 0 | P61: 0 | Q61: 0 | R61: 0 | S61: 0 | T61: 0 | U61: 0 | V61: 0 | W61: 0 | X61: 0 | Y61: 0 | Z61: =Z54 -> 0 | AA61: 0 | AB61: 0 | AC61: 0 | AD61: 1oo2 | AE61: =2*D61*(AA61+AB61+AC61)+U61+V61+W61 -> 0
A62: 2oo3 | B62: 3 | C62: 1 | D62: =D53 -> 0 | E62: =E53 -> 0 | F62: 0 | G62: 0 | H62: 0 | I62: 0 | J62: 0 | K62: 0 | L62: 0 | M62: 0 | N62: 0 | O62: 0 | P62: 0 | Q62: 0 | R62: 0 | S62: 0 | T62: 0 | U62: 0 | V62: 0 | W62: 0 | X62: 0 | Y62: 0 | Z62: =Z55 -> 0 | AA62: 0 | AB62: 0 | AC62: 0 | AD62: 2oo3 | AE62: =6*D62*(AE53-X53-Y53-Z53)+U62+V62+W62 -> 0
A63: 1oo3 | B63: 3 | C63: 2 | D63: =D53 -> 0 | E63: =E53 -> 0 | F63: 0 | G63: 0 | H63: 0 | I63: 0 | J63: 0 | K63: 0 | L63: 0 | M63: 0 | N63: 0 | O63: 0 | P63: 0 | Q63: 0 | R63: 0 | S63: 0 | T63: 0 | U63: =U53 -> 0 | V63: =V53 -> 0 | W63: 0 | X63: 0 | Y63: 0 | Z63: =Z56 -> 0 | AA63: 0 | AB63: 0 | AC63: 0 | AD63: 1oo3 | AE63: =3*D63*(AE54-X54-Y54-Z54)+U63+V63+W63 -> 0
A64: 2oo4 | B64: 4 | C64: 2 | D64: =D53 -> 0 | E64: =E53 -> 0 | F64: 0 | G64: 0 | H64: 0 | I64: 0 | J64: 0 | K64: 0 | L64: 0 | M64: 0 | N64: 0 | O64: 0 | P64: 0 | Q64: 0 | R64: 0 | S64: 0 | T64: 0 | U64: =U53 -> 0 | V64: =V53 -> 0 | W64: 0 | X64: 0 | Y64: 0 | Z64: =Z57 -> 0 | AA64: 0 | AB64: 0 | AC64: 0 | AD64: 2oo4 | AE64: =4*D64*(AE55-X55-Y55-Z55)+U64+V64+W64 -> 0

Sheet N-f
A1: Ref | B1: Number (N) | C1: Fault Tolerance (f) | D1: Failure Rate (dengerous failure rate of single item) (λd) [y-1] | E1: Diagnostic Coverage (C) [no units] | F1: Residual Factor (R) [no units] | G1: Dangerous detected failure rate (λdd) [y-1] | H1: Dangerous Residual failure rate (λdr) [y-1] | I1: Dangerous undetected failure rate (λdu) [y-1] | J1: Mean Time to Restore (for diagnosed) (MTTRd) [y] | K1: Mean Time to Restore (found in test) (MTTRu) [y] | L1: Mean Time to Restore (planned change out) (MTTRr) [y] | M1: Mission Time (MT) [y] | N1: Test Interval (T) [y] | O1: Beta Factor (diagnosed) (βD) [no units] | P1: Beta Factor (residual) (βR) [no units] | Q1: Beta Factor (undiagnosed) (βU) [no units] | R1: Synchronous Proof Testing? [1/0] | S1: Synchronous Replacement? [1/0] | T1: Synchronous Proof Testing and Replacement? [1/0]
A2: Enter reference in column A to enable calculation. Ctrl+Shift+C to Calculate | D2: 4 | E2: 5 | F2: 6 | G2: 7 | H2: 8 | I2: 9 | J2: 10 | K2: 11 | L2: 12 | M2: 13 | N2: 14 | O2: 15 | P2: 16 | Q2: 17 | R2: 18 | S2: 19 | T2: 20 | U2: 21 | V2: 22 | W2: 23 | X2: 24 | Y2: 25 | Z2: 26 | AA2: 27 | AB2: 28 | AC2: 29 | AD2: 30 | AE2: 31 | AF2: 32
B3: N | C3: f | D3: λd | E3: C | F3: R | G3: λdd | H3: λdr | I3: λdu | J3: MTTRD | K3: MTTRR | L3: MTTRU | M3: MT | N3: T | O3: βD | P3: βR | Q3: βU | R3: SYNCU | S3: SYNCR | T3: SYNCUR
A4: 1 | B4: 1 | C4: 0 | D4: ='Data Entry for Test'!C5 -> 0.01 | E4: ='Data Entry for Test'!C6 -> 0.1 | F4: ='Data Entry for Test'!C7 -> 0.1 | G4: =D4*E4 -> 0.001 | H4: =D4*F4 -> 0.001 | I4: =D4-G4-H4 -> 0.008 | J4: ='Data Entry for Test'!C8 -> 0.005 | K4: ='Data Entry for Test'!C9 -> 0.005 | L4: ='Data Entry for Test'!C10 -> 0.005 | M4: ='Data Entry for Test'!C11 -> 5 | N4: ='Data Entry for Test'!C12 -> 1 | O4: ='Data Entry for Test'!C13 -> 0.05 | P4: ='Data Entry for Test'!C14 -> 0.05 | Q4: ='Data Entry for Test'!C15 -> 0.05 | R4: ='Data Entry for Test'!C16 -> 0 | S4: ='Data Entry for Test'!C17 -> 1 | T4: ='Data Entry for Test'!C18 -> 0 | U4: 0 | V4: 0 | W4: 0 | X4: 0 | Y4: 0 | Z4: 0 | AA4: 0.001045 | AB4: 0.0025 | AC4: 0.004 | AE4: 0.007545 | AF4: 0.01
A5: 2 | B5: 2 | C5: 1 | D5: =IF($B5>0,D$4,"") -> 0.01 | E5: =IF($B5>0,E$4,"") -> 0.1 | F5: =IF($B5>0,F$4,"") -> 0.1 | G5: =IF($B5>0,G$4,"") -> 0.001 | H5: =IF($B5>0,H$4,"") -> 0.001 | I5: =IF($B5>0,I$4,"") -> 0.008 | J5: =IF($B5>0,J$4,"") -> 0.005 | K5: =IF($B5>0,K$4,"") -> 0.005 | L5: =IF($B5>0,L$4,"") -> 0.005 | M5: =IF($B5>0,M$4,"") -> 5 | N5: =IF($B5>0,N$4,"") -> 1 | O5: =IF($B5>0,O$4,"") -> 0.05 | P5: =IF($B5>0,P$4,"") -> 0.05 | Q5: =IF($B5>0,Q$4,"") -> 0.05 | R5: =IF($B5>0,R$4,"") -> 0 | S5: =IF($B5>0,S$4,"") -> 1 | T5: 0 | U5: 5.000000075e-05 | V5: 5.000000075e-05 | W5: 0.000400000006 | X5: 2.500000037e-07 | Y5: 0.0001250000019 | Z5: 0.0001000000015 | AA5: 0.00104275 | AB5: 0.002374999998 | AC5: 0.003799999997 | AE5: 0.00027681946 | AF5: 0.0006443550074
A6: 3 | B6: 3 | C6: 1 | D6: 0.01 | E6: 0.1 | F6: 0.1 | G6: 0.001 | H6: 0.001 | I6: 0.008 | J6: 0.005 | K6: 0.005 | L6: 0.005 | M6: 5 | N6: 1 | O6: 0.05 | P6: 0.05 | Q6: 0.05 | R6: 0 | S6: 1 | T6: 0 | U6: 5.000000075e-05 | V6: 5.000000075e-05 | W6: 0.000400000006 | X6: 2.500000037e-07 | Y6: 0.0001250000019 | Z6: 6.666666766e-05 | AA6: 0.00104275 | AB6: 0.002374999998 | AC6: 0.003799999997 | AE6: 0.0003490317071 | AF6: 0.0009330650072
A7: 4 | B7: 3 | C7: 2 | D7: 0.01 | E7: 0.1 | F7: 0.1 | G7: 0.001 | H7: 0.001 | I7: 0.008 | J7: 0.005 | K7: 0.005 | L7: 0.005 | M7: 5 | N7: 1 | O7: 0.05 | P7: 0.05 | Q7: 0.05 | R7: 0 | S7: 1 | T7: 0 | U7: 5.000000075e-05 | V7: 5.000000075e-05 | W7: 0.000400000006 | X7: 2.500000037e-07 | Y7: 0.0001250000019 | Z7: 6.666666766e-05 | AA7: 0.00104275 | AB7: 0.002374999998 | AC7: 0.003799999997 | AE7: 0.000192298656 | AF7: 0.0005015711578
A8: 5 | B8: 4 | C8: 2 | D8: 0.01 | E8: 0.1 | F8: 0.1 | G8: 0.001 | H8: 0.001 | I8: 0.008 | J8: 0.005 | K8: 0.005 | L8: 0.005 | M8: 5 | N8: 1 | O8: 0.05 | P8: 0.05 | Q8: 0.05 | R8: 0 | S8: 1 | T8: 0 | U8: 5.000000075e-05 | V8: 5.000000075e-05 | W8: 0.000400000006 | X8: 2.500000037e-07 | Y8: 0.0001250000019 | Z8: 5.000000075e-05 | AA8: 0.00104275 | AB8: 0.002374999998 | AC8: 0.003799999997 | AE8: 0.00017681269 | AF8: 0.0005063327423
A9: 6 | B9: 1 | C9: 0 | D9: 0.01 | E9: 0.1 | F9: 0.1 | G9: 0.001 | H9: 0.001 | I9: 0.008 | J9: 0.005 | K9: 0.005 | L9: 0.005 | M9: 5 | N9: 1 | O9: 0.05 | P9: 0.05 | Q9: 0.05 | R9: 0 | S9: 1 | T9: 0 | U9: 0 | V9: 0 | W9: 0 | X9: 0 | Y9: 0 | Z9: 0 | AA9: 0.001045 | AB9: 0.0025 | AC9: 0.004 | AE9: 0.007545 | AF9: 0.01
A10: 7 | B10: 2 | C10: 0 | D10: 0.01 | E10: 0.1 | F10: 0.1 | G10: 0.001 | H10: 0.001 | I10: 0.008 | J10: 0.005 | K10: 0.005 | L10: 0.005 | M10: 5 | N10: 1 | O10: 0.05 | P10: 0.05 | Q10: 0.05 | R10: 0 | S10: 1 | T10: 0 | U10: 5.000000075e-05 | V10: 5.000000075e-05 | W10: 0.000400000006 | X10: 2.500000037e-07 | Y10: 0.0001250000019 | Z10: 0.0001000000015 | AA10: 0.00104275 | AB10: 0.002374999998 | AC10: 0.003799999997 | AE10: 0.01466074999 | AF10: 0.02050000001
A11: 8 | B11: 2 | C11: 1 | D11: 0.01 | E11: 0.1 | F11: 0.1 | G11: 0.001 | H11: 0.001 | I11: 0.008 | J11: 0.005 | K11: 0.005 | L11: 0.005 | M11: 5 | N11: 1 | O11: 0.05 | P11: 0.05 | Q11: 0.05 | R11: 0 | S11: 1 | T11: 0 | U11: 5.000000075e-05 | V11: 5.000000075e-05 | W11: 0.000400000006 | X11: 2.500000037e-07 | Y11: 0.0001250000019 | Z11: 0.0001000000015 | AA11: 0.00104275 | AB11: 0.002374999998 | AC11: 0.003799999997 | AE11: 0.00027681946 | AF11: 0.0006443550074
A12: 9 | B12: 3 | C12: 0 | D12: 0.01 | E12: 0.1 | F12: 0.1 | G12: 0.001 | H12: 0.001 | I12: 0.008 | J12: 0.005 | K12: 0.005 | L12: 0.005 | M12: 5 | N12: 1 | O12: 0.05 | P12: 0.05 | Q12: 0.05 | R12: 0 | S12: 1 | T12: 0 | U12: 5.000000075e-05 | V12: 5.000000075e-05 | W12: 0.000400000006 | X12: 2.500000037e-07 | Y12: 0.0001250000019 | Z12: 6.666666766e-05 | AA12: 0.00104275 | AB12: 0.002374999998 | AC12: 0.003799999997 | AE12: 0.02184516665 | AF12: 0.03050000001
A13: 10 | B13: 3 | C13: 1 | D13: 0.01 | E13: 0.1 | F13: 0.1 | G13: 0.001 | H13: 0.001 | I13: 0.008 | J13: 0.005 | K13: 0.005 | L13: 0.005 | M13: 5 | N13: 1 | O13: 0.05 | P13: 0.05 | Q13: 0.05 | R13: 0 | S13: 1 | T13: 0 | U13: 5.000000075e-05 | V13: 5.000000075e-05 | W13: 0.000400000006 | X13: 2.500000037e-07 | Y13: 0.0001250000019 | Z13: 6.666666766e-05 | AA13: 0.00104275 | AB13: 0.002374999998 | AC13: 0.003799999997 | AE13: 0.0003490317071 | AF13: 0.0009330650072
A14: 11 | B14: 3 | C14: 2 | D14: 0.01 | E14: 0.1 | F14: 0.1 | G14: 0.001 | H14: 0.001 | I14: 0.008 | J14: 0.005 | K14: 0.005 | L14: 0.005 | M14: 5 | N14: 1 | O14: 0.05 | P14: 0.05 | Q14: 0.05 | R14: 0 | S14: 1 | T14: 0 | U14: 5.000000075e-05 | V14: 5.000000075e-05 | W14: 0.000400000006 | X14: 2.500000037e-07 | Y14: 0.0001250000019 | Z14: 6.666666766e-05 | AA14: 0.00104275 | AB14: 0.002374999998 | AC14: 0.003799999997 | AE14: 0.000192298656 | AF14: 0.0005015711578
A15: 12 | B15: 4 | C15: 0 | D15: 0.01 | E15: 0.1 | F15: 0.1 | G15: 0.001 | H15: 0.001 | I15: 0.008 | J15: 0.005 | K15: 0.005 | L15: 0.005 | M15: 5 | N15: 1 | O15: 0.05 | P15: 0.05 | Q15: 0.05 | R15: 0 | S15: 1 | T15: 0 | U15: 5.000000075e-05 | V15: 5.000000075e-05 | W15: 0.000400000006 | X15: 2.500000037e-07 | Y15: 0.0001250000019 | Z15: 5.000000075e-05 | AA15: 0.00104275 | AB15: 0.002374999998 | AC15: 0.003799999997 | AE15: 0.02904624998 | AF15: 0.04050000001
A16: 13 | B16: 4 | C16: 1 | D16: 0.01 | E16: 0.1 | F16: 0.1 | G16: 0.001 | H16: 0.001 | I16: 0.008 | J16: 0.005 | K16: 0.005 | L16: 0.005 | M16: 5 | N16: 1 | O16: 0.05 | P16: 0.05 | Q16: 0.05 | R16: 0 | S16: 1 | T16: 0 | U16: 5.000000075e-05 | V16: 5.000000075e-05 | W16: 0.000400000006 | X16: 2.500000037e-07 | Y16: 0.0001250000019 | Z16: 5.000000075e-05 | AA16: 0.00104275 | AB16: 0.002374999998 | AC16: 0.003799999997 | AE16: 0.0004918867456 | AF16: 0.001366130007
A17: 14 | B17: 4 | C17: 2 | D17: 0.01 | E17: 0.1 | F17: 0.1 | G17: 0.001 | H17: 0.001 | I17: 0.008 | J17: 0.005 | K17: 0.005 | L17: 0.005 | M17: 5 | N17: 1 | O17: 0.05 | P17: 0.05 | Q17: 0.05 | R17: 0 | S17: 1 | T17: 0 | U17: 5.000000075e-05 | V17: 5.000000075e-05 | W17: 0.000400000006 | X17: 2.500000037e-07 | Y17: 0.0001250000019 | Z17: 5.000000075e-05 | AA17: 0.00104275 | AB17: 0.002374999998 | AC17: 0.003799999997 | AE17: 0.00017681269 | AF17: 0.0005063327423
A18: 15 | B18: 4 | C18: 3 | D18: 0.01 | E18: 0.1 | F18: 0.1 | G18: 0.001 | H18: 0.001 | I18: 0.008 | J18: 0.005 | K18: 0.005 | L18: 0.005 | M18: 5 | N18: 1 | O18: 0.05 | P18: 0.05 | Q18: 0.05 | R18: 0 | S18: 1 | T18: 0 | U18: 5.000000075e-05 | V18: 5.000000075e-05 | W18: 0.000400000006 | X18: 2.500000037e-07 | Y18: 0.0001250000019 | Z18: 5.000000075e-05 | AA18: 0.00104275 | AB18: 0.002374999998 | AC18: 0.003799999997 | AE18: 0.0001752529257 | AF18: 0.0005000156343
A19: 16 | B19: 5 | C19: 0 | D19: 0.01 | E19: 0.1 | F19: 0.1 | G19: 0.001 | H19: 0.001 | I19: 0.008 | J19: 0.005 | K19: 0.005 | L19: 0.005 | M19: 5 | N19: 1 | O19: 0.05 | P19: 0.05 | Q19: 0.05 | R19: 0 | S19: 1 | T19: 0 | U19: 5.000000075e-05 | V19: 5.000000075e-05 | W19: 0.000400000006 | X19: 2.500000037e-07 | Y19: 0.0001250000019 | Z19: 4.00000006e-05 | AA19: 0.00104275 | AB19: 0.002374999998 | AC19: 0.003799999997 | AE19: 0.03625399998 | AF19: 0.05050000001
A20: 17 | B20: 5 | C20: 1 | D20: 0.01 | E20: 0.1 | F20: 0.1 | G20: 0.001 | H20: 0.001 | I20: 0.008 | J20: 0.005 | K20: 0.005 | L20: 0.005 | M20: 5 | N20: 1 | O20: 0.05 | P20: 0.05 | Q20: 0.05 | R20: 0 | S20: 1 | T20: 0 | U20: 5.000000075e-05 | V20: 5.000000075e-05 | W20: 0.000400000006 | X20: 2.500000037e-07 | Y20: 0.0001250000019 | Z20: 4.00000006e-05 | AA20: 0.00104275 | AB20: 0.002374999998 | AC20: 0.003799999997 | AE20: 0.0006953845719 | AF20: 0.001943550006
A21: 18 | B21: 5 | C21: 2 | D21: 0.01 | E21: 0.1 | F21: 0.1 | G21: 0.001 | H21: 0.001 | I21: 0.008 | J21: 0.005 | K21: 0.005 | L21: 0.005 | M21: 5 | N21: 1 | O21: 0.05 | P21: 0.05 | Q21: 0.05 | R21: 0 | S21: 1 | T21: 0 | U21: 5.000000075e-05 | V21: 5.000000075e-05 | W21: 0.000400000006 | X21: 2.500000037e-07 | Y21: 0.0001250000019 | Z21: 4.00000006e-05 | AA21: 0.00104275 | AB21: 0.002374999998 | AC21: 0.003799999997 | AE21: 0.000169208833 | AF21: 0.0005159040445
A22: 19 | B22: 5 | C22: 3 | D22: 0.01 | E22: 0.1 | F22: 0.1 | G22: 0.001 | H22: 0.001 | I22: 0.008 | J22: 0.005 | K22: 0.005 | L22: 0.005 | M22: 5 | N22: 1 | O22: 0.05 | P22: 0.05 | Q22: 0.05 | R22: 0 | S22: 1 | T22: 0 | U22: 5.000000075e-05 | V22: 5.000000075e-05 | W22: 0.000400000006 | X22: 2.500000037e-07 | Y22: 0.0001250000019 | Z22: 4.00000006e-05 | AA22: 0.00104275 | AB22: 0.002374999998 | AC22: 0.003799999997 | AE22: 0.0001652649989 | AF22: 0.0005000791841
A23: 20 | B23: 5 | C23: 4 | D23: 0.01 | E23: 0.1 | F23: 0.1 | G23: 0.001 | H23: 0.001 | I23: 0.008 | J23: 0.005 | K23: 0.005 | L23: 0.005 | M23: 5 | N23: 1 | O23: 0.05 | P23: 0.05 | Q23: 0.05 | R23: 0 | S23: 1 | T23: 0 | U23: 5.000000075e-05 | V23: 5.000000075e-05 | W23: 0.000400000006 | X23: 2.500000037e-07 | Y23: 0.0001250000019 | Z23: 4.00000006e-05 | AA23: 0.00104275 | AB23: 0.002374999998 | AC23: 0.003799999997 | AE23: 0.0001652500254 | AF23: 0.0005000001574
A24: 21 | B24: 6 | C24: 0 | D24: 0.01 | E24: 0.1 | F24: 0.1 | G24: 0.001 | H24: 0.001 | I24: 0.008 | J24: 0.005 | K24: 0.005 | L24: 0.005 | M24: 5 | N24: 1 | O24: 0.05 | P24: 0.05 | Q24: 0.05 | R24: 0 | S24: 1 | T24: 0 | U24: 5.000000075e-05 | V24: 5.000000075e-05 | W24: 0.000400000006 | X24: 2.500000037e-07 | Y24: 0.0001250000019 | Z24: 3.333333383e-05 | AA24: 0.00104275 | AB24: 0.002374999998 | AC24: 0.003799999997 | AE24: 0.04346508331 | AF24: 0.06050000001
A25: 22 | B25: 6 | C25: 1 | D25: 0.01 | E25: 0.1 | F25: 0.1 | G25: 0.001 | H25: 0.001 | I25: 0.008 | J25: 0.005 | K25: 0.005 | L25: 0.005 | M25: 5 | N25: 1 | O25: 0.05 | P25: 0.05 | Q25: 0.05 | R25: 0 | S25: 1 | T25: 0 | U25: 5.000000075e-05 | V25: 5.000000075e-05 | W25: 0.000400000006 | X25: 2.500000037e-07 | Y25: 0.0001250000019 | Z25: 3.333333383e-05 | AA25: 0.00104275 | AB25: 0.002374999998 | AC25: 0.003799999997 | AE25: 0.0009561918498 | AF25: 0.002665325006
A26: 23 | B26: 6 | C26: 2 | D26: 0.01 | E26: 0.1 | F26: 0.1 | G26: 0.001 | H26: 0.001 | I26: 0.008 | J26: 0.005 | K26: 0.005 | L26: 0.005 | M26: 5 | N26: 1 | O26: 0.05 | P26: 0.05 | Q26: 0.05 | R26: 0 | S26: 1 | T26: 0 | U26: 5.000000075e-05 | V26: 5.000000075e-05 | W26: 0.000400000006 | X26: 2.500000037e-07 | Y26: 0.0001250000019 | Z26: 3.333333383e-05 | AA26: 0.00104275 | AB26: 0.002374999998 | AC26: 0.003799999997 | AE26: 0.0001665704795 | AF26: 0.000531904348
A27: 24 | B27: 6 | C27: 3 | D27: 0.01 | E27: 0.1 | F27: 0.1 | G27: 0.001 | H27: 0.001 | I27: 0.008 | J27: 0.005 | K27: 0.005 | L27: 0.005 | M27: 5 | N27: 1 | O27: 0.05 | P27: 0.05 | Q27: 0.05 | R27: 0 | S27: 1 | T27: 0 | U27: 5.000000075e-05 | V27: 5.000000075e-05 | W27: 0.000400000006 | X27: 2.500000037e-07 | Y27: 0.0001250000019 | Z27: 3.333333383e-05 | AA27: 0.00104275 | AB27: 0.002374999998 | AC27: 0.003799999997 | AE27: 0.0001586290903 | AF27: 0.0005002396218
A28: 25 | B28: 6 | C28: 4 | D28: 0.01 | E28: 0.1 | F28: 0.1 | G28: 0.001 | H28: 0.001 | I28: 0.008 | J28: 0.005 | K28: 0.005 | L28: 0.005 | M28: 5 | N28: 1 | O28: 0.05 | P28: 0.05 | Q28: 0.05 | R28: 0 | S28: 1 | T28: 0 | U28: 5.000000075e-05 | V28: 5.000000075e-05 | W28: 0.000400000006 | X28: 2.500000037e-07 | Y28: 0.0001250000019 | Z28: 3.333333383e-05 | AA28: 0.00104275 | AB28: 0.002374999998 | AC28: 0.003799999997 | AE28: 0.0001585834774 | AF28: 0.0005000009225
A29: 26 | B29: 6 | C29: 5 | D29: 0.01 | E29: 0.1 | F29: 0.1 | G29: 0.001 | H29: 0.001 | I29: 0.008 | J29: 0.005 | K29: 0.005 | L29: 0.005 | M29: 5 | N29: 1 | O29: 0.05 | P29: 0.05 | Q29: 0.05 | R29: 0 | S29: 1 | T29: 0 | U29: 5.000000075e-05 | V29: 5.000000075e-05 | W29: 0.000400000006 | X29: 2.500000037e-07 | Y29: 0.0001250000019 | Z29: 3.333333383e-05 | AA29: 0.00104275 | AB29: 0.002374999998 | AC29: 0.003799999997 | AE29: 0.0001585833359 | AF29: 0.0005000000089
A30: 27 | B30: 7 | C30: 0 | D30: 0.01 | E30: 0.1 | F30: 0.1 | G30: 0.001 | H30: 0.001 | I30: 0.008 | J30: 0.005 | K30: 0.005 | L30: 0.005 | M30: 5 | N30: 1 | O30: 0.05 | P30: 0.05 | Q30: 0.05 | R30: 0 | S30: =IF($B30>0,S$4,"") -> 1 | T30: 0 | U30: 5.000000075e-05 | V30: 5.000000075e-05 | W30: 0.000400000006 | X30: 2.500000037e-07 | Y30: 0.0001250000019 | Z30: 2.8571429e-05 | AA30: 0.00104275 | AB30: 0.002374999998 | AC30: 0.003799999997 | AE30: 0.0506780714 | AF30: 0.07050000001
A31: 28 | B31: 7 | C31: 1 | D31: 0.01 | E31: 0.1 | F31: 0.1 | G31: 0.001 | H31: 0.001 | I31: 0.008 | J31: 0.005 | K31: 0.005 | L31: 0.005 | M31: 5 | N31: 1 | O31: 0.05 | P31: 0.05 | Q31: 0.05 | R31: 0 | S31: 1 | T31: 0 | U31: 5.000000075e-05 | V31: 5.000000075e-05 | W31: 0.000400000006 | X31: 2.500000037e-07 | Y31: 0.0001250000019 | Z31: 2.8571429e-05 | AA31: 0.00104275 | AB31: 0.002374999998 | AC31: 0.003799999997 | AE31: 0.001272880026 | AF31: 0.003531455005
A32: 29 | B32: 7 | C32: 2 | D32: 0.01 | E32: 0.1 | F32: 0.1 | G32: 0.001 | H32: 0.001 | I32: 0.008 | J32: 0.005 | K32: 0.005 | L32: 0.005 | M32: 5 | N32: 1 | O32: 0.05 | P32: 0.05 | Q32: 0.05 | R32: 0 | S32: 1 | T32: 0 | U32: 5.000000075e-05 | V32: 5.000000075e-05 | W32: 0.000400000006 | X32: 2.500000037e-07 | Y32: 0.0001250000019 | Z32: 2.8571429e-05 | AA32: 0.00104275 | AB32: 0.002374999998 | AC32: 0.003799999997 | AE32: 0.0001678857864 | AF32: 0.0005559529372
A33: 30 | B33: 7 | C33: 3 | D33: 0.01 | E33: 0.1 | F33: 0.1 | G33: 0.001 | H33: 0.001 | I33: 0.008 | J33: 0.005 | K33: 0.005 | L33: 0.005 | M33: 5 | N33: 1 | O33: 0.05 | P33: 0.05 | Q33: 0.05 | R33: 0 | S33: 1 | T33: 0 | U33: 5.000000075e-05 | V33: 5.000000075e-05 | W33: 0.000400000006 | X33: 2.500000037e-07 | Y33: 0.0001250000019 | Z33: 2.8571429e-05 | AA33: 0.00104275 | AB33: 0.002374999998 | AC33: 0.003799999997 | AE33: 0.0001539294711 | AF33: 0.0005005625817
A34: 31 | B34: 7 | C34: 4 | D34: 0.01 | E34: 0.1 | F34: 0.1 | G34: 0.001 | H34: 0.001 | I34: 0.008 | J34: 0.005 | K34: 0.005 | L34: 0.005 | M34: 5 | N34: 1 | O34: 0.05 | P34: 0.05 | Q34: 0.05 | R34: 0 | S34: 1 | T34: 0 | U34: 5.000000075e-05 | V34: 5.000000075e-05 | W34: 0.000400000006 | X34: 2.500000037e-07 | Y34: 0.0001250000019 | Z34: 2.8571429e-05 | AA34: 0.00104275 | AB34: 0.002374999998 | AC34: 0.003799999997 | AE34: 0.0001538219365 | AF34: 0.0005000032487
A35: 31 | B35: 7 | C35: 5 | D35: 0.01 | E35: 0.1 | F35: 0.1 | G35: 0.001 | H35: 0.001 | I35: 0.008 | J35: 0.005 | K35: 0.005 | L35: 0.005 | M35: 5 | N35: 1 | O35: 0.05 | P35: 0.05 | Q35: 0.05 | R35: 0 | S35: 1 | T35: 0 | U35: 5.000000075e-05 | V35: 5.000000075e-05 | W35: 0.000400000006 | X35: 2.500000037e-07 | Y35: 0.0001250000019 | Z35: 2.8571429e-05 | AA35: 0.00104275 | AB35: 0.002374999998 | AC35: 0.003799999997 | AE35: 0.0001538214322 | AF35: 0.0005000000176
A36: 32 | B36: 7 | C36: 6 | D36: 0.01 | E36: 0.1 | F36: 0.1 | G36: 0.001 | H36: 0.001 | I36: 0.008 | J36: 0.005 | K36: 0.005 | L36: 0.005 | M36: 5 | N36: 1 | O36: 0.05 | P36: 0.05 | Q36: 0.05 | R36: 0 | S36: =IF($B36>0,S$4,"") -> 1 | T36: 0 | U36: 5.000000075e-05 | V36: 5.000000075e-05 | W36: 0.000400000006 | X36: 2.500000037e-07 | Y36: 0.0001250000019 | Z36: 2.8571429e-05 | AA36: 0.00104275 | AB36: 0.002374999998 | AC36: 0.003799999997 | AE36: 0.0001538214309 | AF36: 0.0005000000075
A37: 32.5 | B37: 8 | C37: 0 | D37: 0.01 | E37: 0.1 | F37: 0.1 | G37: 0.001 | H37: 0.001 | I37: 0.008 | J37: 0.005 | K37: 0.005 | L37: 0.005 | M37: 5 | N37: 1 | O37: 0.05 | P37: 0.05 | Q37: 0.05 | R37: 0 | S37: 1 | T37: 0 | U37: 5.000000075e-05 | V37: 5.000000075e-05 | W37: 0.000400000006 | X37: 2.500000037e-07 | Y37: 0.0001250000019 | Z37: 2.500000037e-05 | AA37: 0.00104275 | AB37: 0.002374999998 | AC37: 0.003799999997 | AE37: 0.05789224996 | AF37: 0.08050000001
A38: 33.1 | B38: 8 | C38: 1 | D38: =IF($B38>0,D$4,"") -> 0.01 | E38: 0.1 | F38: 0.1 | G38: 0.001 | H38: 0.001 | I38: 0.008 | J38: 0.005 | K38: =IF($B38>0,K$4,"") -> 0.005 | L38: 0.005 | M38: 5 | N38: 1 | O38: 0.05 | P38: 0.05 | Q38: 0.05 | R38: 0 | S38: 1 | T38: 0 | U38: 5.000000075e-05 | V38: 5.000000075e-05 | W38: 0.000400000006 | X38: 2.500000037e-07 | Y38: 0.0001250000019 | Z38: 2.500000037e-05 | AA38: 0.00104275 | AB38: 0.002374999998 | AC38: 0.003799999997 | AE38: 0.001644734787 | AF38: 0.004541940005
A39: 33.7 | B39: 8 | C39: 2 | D39: 0.01 | E39: 0.1 | F39: 0.1 | G39: 0.001 | H39: 0.001 | I39: 0.008 | J39: 0.005 | K39: 0.005 | L39: 0.005 | M39: 5 | N39: 1 | O39: 0.05 | P39: 0.05 | Q39: 0.05 | R39: 0 | S39: 1 | T39: 0 | U39: 5.000000075e-05 | V39: 5.000000075e-05 | W39: 0.000400000006 | X39: 2.500000037e-07 | Y39: 0.0001250000019 | Z39: 2.500000037e-05 | AA39: 0.00104275 | AB39: 0.002374999998 | AC39: 0.003799999997 | AE39: 0.0001728571951 | AF39: 0.0005896690945
A40: 34.3 | B40: 8 | C40: 3 | D40: 0.01 | E40: 0.1 | F40: 0.1 | G40: 0.001 | H40: 0.001 | I40: 0.008 | J40: 0.005 | K40: 0.005 | L40: 0.005 | M40: 5 | N40: 1 | O40: 0.05 | P40: 0.05 | Q40: 0.05 | R40: 0 | S40: 1 | T40: 0 | U40: 5.000000075e-05 | V40: 5.000000075e-05 | W40: 0.000400000006 | X40: 2.500000037e-07 | Y40: 0.0001250000019 | Z40: 2.500000037e-05 | AA40: 0.00104275 | AB40: 0.002374999998 | AC40: 0.003799999997 | AE40: 0.0001504680061 | AF40: 0.0005011303671
A41: 34.9 | B41: 8 | C41: 4 | D41: 0.01 | E41: 0.1 | F41: 0.1 | G41: 0.001 | H41: 0.001 | I41: 0.008 | J41: 0.005 | K41: 0.005 | L41: 0.005 | M41: 5 | N41: 1 | O41: 0.05 | P41: 0.05 | Q41: 0.05 | R41: 0 | S41: 1 | T41: 0 | U41: 5.000000075e-05 | V41: 5.000000075e-05 | W41: 0.000400000006 | X41: 2.500000037e-07 | Y41: 0.0001250000019 | Z41: 2.500000037e-05 | AA41: 0.00104275 | AB41: 0.002374999998 | AC41: 0.003799999997 | AE41: 0.0001502513699 | AF41: 0.0005000087276
A42: 35.5 | B42: 8 | C42: 5 | D42: 0.01 | E42: 0.1 | F42: 0.1 | G42: 0.001 | H42: 0.001 | I42: 0.008 | J42: 0.005 | K42: 0.005 | L42: 0.005 | M42: 5 | N42: 1 | O42: 0.05 | P42: 0.05 | Q42: 0.05 | R42: 0 | S42: 1 | T42: 0 | U42: 5.000000075e-05 | V42: 5.000000075e-05 | W42: 0.000400000006 | X42: 2.500000037e-07 | Y42: 0.0001250000019 | Z42: 2.500000037e-05 | AA42: 0.00104275 | AB42: 0.002374999998 | AC42: 0.003799999997 | AE42: 0.0001502500077 | AF42: 0.0005000000485
A43: 36.1 | B43: 8 | C43: 6 | D43: 0.01 | E43: 0.1 | F43: =IF($B43>0,F$4,"") -> 0.1 | G43: 0.001 | H43: 0.001 | I43: 0.008 | J43: 0.005 | K43: 0.005 | L43: 0.005 | M43: 5 | N43: 1 | O43: 0.05 | P43: 0.05 | Q43: 0.05 | R43: 0 | S43: 1 | T43: 0 | U43: 5.000000075e-05 | V43: 5.000000075e-05 | W43: 0.000400000006 | X43: 2.500000037e-07 | Y43: 0.0001250000019 | Z43: 2.500000037e-05 | AA43: 0.00104275 | AB43: 0.002374999998 | AC43: 0.003799999997 | AE43: 0.0001502500023 | AF43: 0.0005000000076
A44: 36.7 | B44: 8 | C44: 7 | D44: 0.01 | E44: 0.1 | F44: 0.1 | G44: 0.001 | H44: 0.001 | I44: 0.008 | J44: 0.005 | K44: 0.005 | L44: 0.005 | M44: 5 | N44: 1 | O44: 0.05 | P44: 0.05 | Q44: 0.05 | R44: 0 | S44: 1 | T44: 0 | U44: 5.000000075e-05 | V44: 5.000000075e-05 | W44: 0.000400000006 | X44: 2.500000037e-07 | Y44: 0.0001250000019 | Z44: 2.500000037e-05 | AA44: 0.00104275 | AB44: 0.002374999998 | AC44: 0.003799999997 | AE44: 0.0001502500022 | AF44: 0.0005000000075
A45: 37.3 | B45: 9 | C45: 0 | D45: 0.01 | E45: 0.1 | F45: 0.1 | G45: 0.001 | H45: 0.001 | I45: 0.008 | J45: 0.005 | K45: 0.005 | L45: 0.005 | M45: 5 | N45: 1 | O45: 0.05 | P45: 0.05 | Q45: 0.05 | R45: 0 | S45: 1 | T45: 0 | U45: 5.000000075e-05 | V45: 5.000000075e-05 | W45: 0.000400000006 | X45: 2.500000037e-07 | Y45: 0.0001250000019 | Z45: 2.222222255e-05 | AA45: 0.00104275 | AB45: 0.002374999998 | AC45: 0.003799999997 | AE45: 0.06510722218 | AF45: 0.09050000001
A46: 37.9 | B46: 9 | C46: 1 | D46: 0.01 | E46: 0.1 | F46: 0.1 | G46: 0.001 | H46: 0.001 | I46: 0.008 | J46: 0.005 | K46: 0.005 | L46: 0.005 | M46: 5 | N46: 1 | O46: 0.05 | P46: 0.05 | Q46: 0.05 | R46: 0 | S46: 1 | T46: 0 | U46: 5.000000075e-05 | V46: 5.000000075e-05 | W46: 0.000400000006 | X46: 2.500000037e-07 | Y46: 0.0001250000019 | Z46: 2.222222255e-05 | AA46: 0.00104275 | AB46: 0.002374999998 | AC46: 0.003799999997 | AE46: 0.00207135935 | AF46: 0.005696780004
A47: 38.5 | B47: 9 | C47: 2 | D47: 0.01 | E47: 0.1 | F47: 0.1 | G47: 0.001 | H47: 0.001 | I47: 0.008 | J47: 0.005 | K47: 0.005 | L47: 0.005 | M47: 5 | N47: 1 | O47: 0.05 | P47: 0.05 | Q47: 0.05 | R47: 0 | S47: 1 | T47: 0 | U47: 5.000000075e-05 | V47: 5.000000075e-05 | W47: 0.000400000006 | X47: 2.500000037e-07 | Y47: 0.0001250000019 | Z47: 2.222222255e-05 | AA47: 0.00104275 | AB47: 0.002374999998 | AC47: 0.003799999997 | AE47: 0.0001815046093 | AF47: 0.0006346721063
A48: 39.1 | B48: 9 | C48: 3 | D48: =IF($B48>0,D$4,"") -> 0.01 | E48: 0.1 | F48: 0.1 | G48: 0.001 | H48: 0.001 | I48: 0.008 | J48: 0.005 | K48: 0.005 | L48: 0.005 | M48: 5 | N48: 1 | O48: 0.05 | P48: 0.05 | Q48: 0.05 | R48: 0 | S48: 1 | T48: 0 | U48: 5.000000075e-05 | V48: 5.000000075e-05 | W48: 0.000400000006 | X48: 2.500000037e-07 | Y48: 0.0001250000019 | Z48: 2.222222255e-05 | AA48: 0.00104275 | AB48: 0.002374999998 | AC48: 0.003799999997 | AE48: 0.0001478673286 | AF48: 0.0005020419505
A49: 39.7 | B49: 9 | C49: 4 | D49: 0.01 | E49: 0.1 | F49: 0.1 | G49: 0.001 | H49: 0.001 | I49: 0.008 | J49: 0.005 | K49: 0.005 | L49: 0.005 | M49: 5 | N49: 1 | O49: 0.05 | P49: 0.05 | Q49: 0.05 | R49: 0 | S49: 1 | T49: 0 | U49: 5.000000075e-05 | V49: 5.000000075e-05 | W49: 0.000400000006 | X49: 2.500000037e-07 | Y49: 0.0001250000019 | Z49: 2.222222255e-05 | AA49: 0.00104275 | AB49: 0.002374999998 | AC49: 0.003799999997 | AE49: 0.0001474753356 | AF49: 0.0005000197627
A50: 40.3 | B50: 9 | C50: 5 | D50: 0.01 | E50: 0.1 | F50: 0.1 | G50: 0.001 | H50: 0.001 | I50: 0.008 | J50: 0.005 | K50: 0.005 | L50: 0.005 | M50: 5 | N50: 1 | O50: 0.05 | P50: 0.05 | Q50: 0.05 | R50: 0 | S50: 1 | T50: 0 | U50: 5.000000075e-05 | V50: 5.000000075e-05 | W50: 0.000400000006 | X50: 2.500000037e-07 | Y50: 0.0001250000019 | Z50: 2.222222255e-05 | AA50: 0.00104275 | AB50: 0.002374999998 | AC50: 0.003799999997 | AE50: 0.000147472241 | AF50: 0.0005000001319
A51: 40.9 | B51: 9 | C51: 6 | D51: 0.01 | E51: 0.1 | F51: 0.1 | G51: 0.001 | H51: 0.001 | I51: 0.008 | J51: 0.005 | K51: 0.005 | L51: 0.005 | M51: 5 | N51: 1 | O51: 0.05 | P51: 0.05 | Q51: 0.05 | R51: 0 | S51: 1 | T51: 0 | U51: 5.000000075e-05 | V51: 5.000000075e-05 | W51: 0.000400000006 | X51: 2.500000037e-07 | Y51: 0.0001250000019 | Z51: 2.222222255e-05 | AA51: 0.00104275 | AB51: 0.002374999998 | AC51: 0.003799999997 | AE51: 0.0001474722245 | AF51: 0.0005000000079
A52: 41.5 | B52: 9 | C52: 7 | D52: 0.01 | E52: 0.1 | F52: 0.1 | G52: 0.001 | H52: 0.001 | I52: 0.008 | J52: 0.005 | K52: 0.005 | L52: 0.005 | M52: 5 | N52: 1 | O52: 0.05 | P52: 0.05 | Q52: 0.05 | R52: 0 | S52: 1 | T52: 0 | U52: 5.000000075e-05 | V52: 5.000000075e-05 | W52: 0.000400000006 | X52: 2.500000037e-07 | Y52: 0.0001250000019 | Z52: 2.222222255e-05 | AA52: 0.00104275 | AB52: 0.002374999998 | AC52: 0.003799999997 | AE52: 0.0001474722244 | AF52: 0.0005000000075
A53: 42.1 | B53: 9 | C53: 8 | D53: 0.01 | E53: 0.1 | F53: 0.1 | G53: 0.001 | H53: 0.001 | I53: 0.008 | J53: 0.005 | K53: =IF($B53>0,K$4,"") -> 0.005 | L53: 0.005 | M53: 5 | N53: 1 | O53: 0.05 | P53: 0.05 | Q53: 0.05 | R53: 0 | S53: 1 | T53: 0 | U53: 5.000000075e-05 | V53: 5.000000075e-05 | W53: 0.000400000006 | X53: 2.500000037e-07 | Y53: 0.0001250000019 | Z53: 2.222222255e-05 | AA53: 0.00104275 | AB53: 0.002374999998 | AC53: 0.003799999997 | AE53: 0.0001474722244 | AF53: 0.0005000000075
A54: 42.7 | B54: 10 | C54: 0 | D54: 0.01 | E54: 0.1 | F54: 0.1 | G54: =IF($B54>0,G$4,"") -> 0.001 | H54: 0.001 | I54: 0.008 | J54: 0.005 | K54: 0.005 | L54: 0.005 | M54: 5 | N54: 1 | O54: 0.05 | P54: 0.05 | Q54: 0.05 | R54: 0 | S54: 1 | T54: 0 | U54: 5.000000075e-05 | V54: 5.000000075e-05 | W54: 0.000400000006 | X54: 2.500000037e-07 | Y54: 0.0001250000019 | Z54: 2.00000003e-05 | AA54: 0.00104275 | AB54: 0.002374999998 | AC54: 0.003799999997 | AE54: 0.07232274995 | AF54: 0.1005
A55: 43.3 | B55: 10 | C55: 1 | D55: 0.01 | E55: 0.1 | F55: 0.1 | G55: 0.001 | H55: 0.001 | I55: 0.008 | J55: 0.005 | K55: 0.005 | L55: 0.005 | M55: 5 | N55: 1 | O55: 0.05 | P55: 0.05 | Q55: 0.05 | R55: 0 | S55: 1 | T55: 0 | U55: 5.000000075e-05 | V55: 5.000000075e-05 | W55: 0.000400000006 | X55: 2.500000037e-07 | Y55: 0.0001250000019 | Z55: 2.00000003e-05 | AA55: 0.00104275 | AB55: 0.002374999998 | AC55: 0.003799999997 | AE55: 0.002552515544 | AF55: 0.006995975003
A56: 43.9 | B56: 10 | C56: 2 | D56: 0.01 | E56: 0.1 | F56: 0.1 | G56: 0.001 | H56: 0.001 | I56: 0.008 | J56: 0.005 | K56: 0.005 | L56: 0.005 | M56: 5 | N56: 1 | O56: 0.05 | P56: 0.05 | Q56: 0.05 | R56: 0 | S56: 1 | T56: 0 | U56: 5.000000075e-05 | V56: 5.000000075e-05 | W56: 0.000400000006 | X56: 2.500000037e-07 | Y56: 0.0001250000019 | Z56: 2.00000003e-05 | AA56: 0.00104275 | AB56: 0.002374999998 | AC56: 0.003799999997 | AE56: 0.0001940066595 | AF56: 0.0006925812508
A57: 44.5 | B57: 10 | C57: 3 | D57: 0.01 | E57: 0.1 | F57: 0.1 | G57: 0.001 | H57: 0.001 | I57: 0.008 | J57: 0.005 | K57: 0.005 | L57: 0.005 | M57: 5 | N57: 1 | O57: 0.05 | P57: 0.05 | Q57: 0.05 | R57: 0 | S57: 1 | T57: 0 | U57: 5.000000075e-05 | V57: 5.000000075e-05 | W57: 0.000400000006 | X57: 2.500000037e-07 | Y57: 0.0001250000019 | Z57: 2.00000003e-05 | AA57: 0.00104275 | AB57: 0.002374999998 | AC57: 0.003799999997 | AE57: 0.00014591211 | AF57: 0.0005034129735
A58: 45.1 | B58: 10 | C58: 4 | D58: 0.01 | E58: 0.1 | F58: 0.1 | G58: 0.001 | H58: 0.001 | I58: 0.008 | J58: 0.005 | K58: 0.005 | L58: 0.005 | M58: 5 | N58: 1 | O58: 0.05 | P58: 0.05 | Q58: 0.05 | R58: 0 | S58: 1 | T58: 0 | U58: 5.000000075e-05 | V58: 5.000000075e-05 | W58: 0.000400000006 | X58: 2.500000037e-07 | Y58: 0.0001250000019 | Z58: 2.00000003e-05 | AA58: 0.00104275 | AB58: 0.002374999998 | AC58: 0.003799999997 | AE58: 0.000145256279 | AF58: 0.0005000397339
A59: 45.7 | B59: 10 | C59: 5 | D59: 0.01 | E59: 0.1 | F59: 0.1 | G59: 0.001 | H59: 0.001 | I59: 0.008 | J59: 0.005 | K59: 0.005 | L59: 0.005 | M59: 5 | N59: 1 | O59: 0.05 | P59: 0.05 | Q59: 0.05 | R59: 0 | S59: 1 | T59: =IF($B59>0,T$4,"") -> 0 | U59: 5.000000075e-05 | V59: 5.000000075e-05 | W59: 0.000400000006 | X59: 2.500000037e-07 | Y59: 0.0001250000019 | Z59: 2.00000003e-05 | AA59: 0.00104275 | AB59: 0.002374999998 | AC59: 0.003799999997 | AE59: 0.0001452500441 | AF59: 0.0005000003213
A60: 46.3 | B60: 10 | C60: 6 | D60: 0.01 | E60: 0.1 | F60: 0.1 | G60: 0.001 | H60: 0.001 | I60: 0.008 | J60: 0.005 | K60: 0.005 | L60: 0.005 | M60: 5 | N60: 1 | O60: 0.05 | P60: 0.05 | Q60: 0.05 | R60: 0 | S60: 1 | T60: 0 | U60: 5.000000075e-05 | V60: 5.000000075e-05 | W60: 0.000400000006 | X60: 2.500000037e-07 | Y60: 0.0001250000019 | Z60: 2.00000003e-05 | AA60: 0.00104275 | AB60: 0.002374999998 | AC60: 0.003799999997 | AE60: 0.0001452500024 | AF60: 0.0005000000091
A61: 46.9 | B61: 10 | C61: 7 | D61: 0.01 | E61: 0.1 | F61: 0.1 | G61: 0.001 | H61: 0.001 | I61: 0.008 | J61: 0.005 | K61: 0.005 | L61: 0.005 | M61: 5 | N61: 1 | O61: 0.05 | P61: 0.05 | Q61: 0.05 | R61: 0 | S61: 1 | T61: 0 | U61: 5.000000075e-05 | V61: 5.000000075e-05 | W61: 0.000400000006 | X61: 2.500000037e-07 | Y61: 0.0001250000019 | Z61: 2.00000003e-05 | AA61: 0.00104275 | AB61: 0.002374999998 | AC61: 0.003799999997 | AE61: 0.0001452500022 | AF61: 0.0005000000075
A62: 47.5 | B62: 10 | C62: 8 | D62: 0.01 | E62: 0.1 | F62: 0.1 | G62: 0.001 | H62: 0.001 | I62: 0.008 | J62: 0.005 | K62: 0.005 | L62: 0.005 | M62: 5 | N62: 1 | O62: 0.05 | P62: 0.05 | Q62: 0.05 | R62: 0 | S62: 1 | T62: 0 | U62: 5.000000075e-05 | V62: 5.000000075e-05 | W62: 0.000400000006 | X62: 2.500000037e-07 | Y62: 0.0001250000019 | Z62: 2.00000003e-05 | AA62: 0.00104275 | AB62: 0.002374999998 | AC62: 0.003799999997 | AE62: 0.0001452500022 | AF62: 0.0005000000075
A63: 48.1 | B63: 10 | C63: 9 | D63: 0.01 | E63: 0.1 | F63: 0.1 | G63: 0.001 | H63: 0.001 | I63: 0.008 | J63: 0.005 | K63: 0.005 | L63: 0.005 | M63: 5 | N63: 1 | O63: 0.05 | P63: 0.05 | Q63: 0.05 | R63: 0 | S63: 1 | T63: =IF($B63>0,T$4,"") -> 0 | U63: 5.000000075e-05 | V63: 5.000000075e-05 | W63: 0.000400000006 | X63: 2.500000037e-07 | Y63: 0.0001250000019 | Z63: 2.00000003e-05 | AA63: 0.00104275 | AB63: 0.002374999998 | AC63: 0.003799999997 | AE63: 0.0001452500022 | AF63: 0.0005000000075
F65: =IF($B65>0,F$4,"") -> 
D68: =IF($B68>0,D$4,"") -> 
J81: =IF($B81>0,J$4,"") -> 
F87: =IF($B87>0,F$4,"") -> 
D88: =IF($B88>0,D$4,"") -> 

Sheet vba Test (hidden)
B1: Number (N) | C1: Fault Tolerance (f) | D1: Failure Rate (dengerous failure rate of single item) (λd) [y-1] | E1: Diagnostic Coverage (C) [no units] | F1: Dangerous undetected failure rate (λdu) [y-1] | G1: Dangerous detected failure rate (λdd) [y-1] | H1: Test Interval (T) [y] | I1: Mean Time to Restore (MTTR) [y] | J1: Beta Factor (undiagnosed) (β) [no units] | K1: Beta Factor (diagnosed) (βD) [no units] | L1: Synchronous Testing? [1/0] | M1: Combin f+1 from N | N1: Combin i from f | O1: Synch test factor | P1: Undiag core | Q1: Undiag index | R1: Diagnosed core | S1: Diag index | T1: Non common cause part | U1: Undiag common cause part | V1: Diag common cause part | W1: Reliability
B2: Dummy
B3: N | C3: f | D3: λd | E3: C | F3: λdu | G3: λdd | H3: T | I3: MDT | J3: β | K3: βD | L3: Sync?
B4: 3 | C4: 1 | D4: 0.0079 | E4: 0.75 | F4: =D4-G4 -> 0.001975 | G4: =D4*E4 -> 0.005925 | H4: 1 | I4: 0.00274 | J4: 0.17 | K4: 0.17 | L4: 1
A5: 0 | B5: =B4 -> 3 | C5: =C4 -> 1 | D5: 0.0079 | E5: 0.75 | F5: 0.001975 | G5: 0.005925 | H5: 1 | I5: 0.00274 | J5: 0.17 | K5: 0.17 | L5: 1 | M5: =IF((A5<C5+2),COMBIN(B5,C5+1),0) -> 3 | N5: =IF((A5<C5+2),COMBIN(C5+1,A5),0) -> 1 | O5: =IF((A5<C5+2),(2^(C5+1-A5)/(C5-A5+2))^L5,0) -> 1.333333333 | P5: =IF((A5<C5+2),(1-J5)*F5*H5/2,0) -> 0.000819625 | Q5: =IF((A5<C5+2),C5+1-A5,0) -> 2 | R5: =IF((A5<C5+2),(1-K5)*G5*I5,0) -> 1.3474635e-05 | S5: =IF((A5<C5+2),A5,0) -> 0 | T5: =IF((A5<C5+2),M5*N5*O5*P5^Q5*R5^S5,0) -> 2.687140563e-06 | U5: =J5*F5*H5/2 -> 0.000167875 | V5: =K5*G5*I5 -> 2.759865e-06
A6: 1 | B6: =B5 -> 3 | C6: 1 | D6: 0.0079 | E6: 0.75 | F6: 0.001975 | G6: 0.005925 | H6: 1 | I6: 0.00274 | J6: 0.17 | K6: 0.17 | L6: 1 | M6: =IF((A6<C6+2),COMBIN(B6,C6+1),0) -> 3 | N6: =IF((A6<C6+2),COMBIN(C6+1,A6),0) -> 2 | O6: =IF((A6<C6+2),(2^(C6+1-A6)/(C6-A6+2))^L6,0) -> 1 | P6: =IF((A6<C6+2),(1-J6)*F6*H6/2,0) -> 0.000819625 | Q6: =IF((A6<C6+2),C6+1-A6,0) -> 1 | R6: =IF((A6<C6+2),(1-K6)*G6*I6,0) -> 1.3474635e-05 | S6: =IF((A6<C6+2),A6,0) -> 1 | T6: =IF((A6<C6+2),M6*N6*O6*P6^Q6*R6^S6,0) -> 6.626488627e-08
A7: 2 | B7: =B6 -> 3 | C7: 1 | D7: 0.0079 | E7: 0.75 | F7: 0.001975 | G7: 0.005925 | H7: 1 | I7: 0.00274 | J7: 0.17 | K7: 0.17 | L7: 1 | M7: 3 | N7: 1 | O7: 1 | P7: 0.000819625 | Q7: 0 | R7: 1.3474635e-05 | S7: 2 | T7: 5.446973651e-10
A8: 3 | B8: 3 | C8: 1 | D8: 0.0079 | E8: 0.75 | F8: 0.001975 | G8: 0.005925 | H8: 1 | I8: 0.00274 | J8: 0.17 | K8: 0.17 | L8: 1 | M8: 0 | N8: 0 | O8: 0 | P8: 0 | Q8: 0 | R8: 0 | S8: 0 | T8: 0
A9: 4 | B9: 3 | C9: 1 | D9: 0.0079 | E9: 0.75 | F9: 0.001975 | G9: 0.005925 | H9: 1 | I9: 0.00274 | J9: 0.17 | K9: 0.17 | L9: 1 | M9: 0 | N9: 0 | O9: 0 | P9: 0 | Q9: 0 | R9: 0 | S9: 0 | T9: 0
A10: 5 | B10: 3 | C10: 1 | D10: 0.0079 | E10: 0.75 | F10: 0.001975 | G10: 0.005925 | H10: 1 | I10: 0.00274 | J10: 0.17 | K10: 0.17 | L10: 1 | M10: 0 | N10: 0 | O10: 0 | P10: 0 | Q10: 0 | R10: 0 | S10: 0 | T10: 0
A11: 6 | B11: 3 | C11: 1 | D11: 0.0079 | E11: 0.75 | F11: 0.001975 | G11: 0.005925 | H11: 1 | I11: 0.00274 | J11: 0.17 | K11: 0.17 | L11: 1 | M11: 0 | N11: 0 | O11: 0 | P11: 0 | Q11: 0 | R11: 0 | S11: 0 | T11: 0
A12: 7 | B12: 3 | C12: 1 | D12: 0.0079 | E12: 0.75 | F12: 0.001975 | G12: 0.005925 | H12: 1 | I12: 0.00274 | J12: 0.17 | K12: 0.17 | L12: 1 | M12: 0 | N12: 0 | O12: 0 | P12: 0 | Q12: 0 | R12: 0 | S12: 0 | T12: 0
A13: 8 | B13: 3 | C13: 1 | D13: 0.0079 | E13: 0.75 | F13: 0.001975 | G13: 0.005925 | H13: 1 | I13: 0.00274 | J13: 0.17 | K13: 0.17 | L13: 1 | M13: 0 | N13: 0 | O13: 0 | P13: 0 | Q13: 0 | R13: 0 | S13: 0 | T13: 0
A14: 9 | B14: 3 | C14: 1 | D14: 0.0079 | E14: 0.75 | F14: 0.001975 | G14: 0.005925 | H14: 1 | I14: 0.00274 | J14: 0.17 | K14: 0.17 | L14: 1 | M14: 0 | N14: 0 | O14: 0 | P14: 0 | Q14: 0 | R14: 0 | S14: 0 | T14: 0
A15: 10 | B15: 3 | C15: 1 | D15: 0.0079 | E15: 0.75 | F15: 0.001975 | G15: 0.005925 | H15: 1 | I15: 0.00274 | J15: 0.17 | K15: 0.17 | L15: 1 | M15: 0 | N15: 0 | O15: 0 | P15: 0 | Q15: 0 | R15: 0 | S15: 0 | T15: 0 | W15: PFDavg
B16: 3 | C16: 1 | D16: 0.0079 | E16: 0.75 | F16: 0.001975 | G16: 0.005925 | H16: 1 | I16: 0.00274 | J16: 0.17 | K16: 0.17 | L16: 1 | T16: =SUM(T5:T15) -> 2.753950146e-06 | U16: =SUM(U5:U15) -> 0.000167875 | V16: =SUM(V5:V15) -> 2.759865e-06 | W16: =SUM(T16:V16) -> 0.0001733888151
A19: 1oo1 | B19: 1 | C19: 0 | D19: 0.0079 | E19: 0.75 | F19: 0.001975 | G19: 0.005925 | H19: 1 | I19: 0.00274 | J19: 0.17 | K19: 0.17 | L19: 1 | U19: =F19*H19/2 -> 0.0009875 | V19: =G19*I19 -> 1.62345e-05 | W19: =U19+V19 -> 0.0010037345
A20: 2oo2 | B20: 2 | C20: 1 | D20: =D19 -> 0.0079 | E20: 0.75 | F20: 0.001975 | G20: 0.005925 | H20: 1 | I20: 0.00274 | J20: 0.17 | K20: 0.17 | L20: 1 | P20: =(1-J20)*F20*H20/2 -> 0.000819625 | R20: =(1-K20)*G20*I20 -> 1.3474635e-05 | T20: =P20^2*(4/3)^L20+2*P20*R20+R20^2 -> 9.17983382e-07 | U20: =J20*F20*H20/2 -> 0.000167875 | V20: =K20*G20*I20 -> 2.759865e-06 | W20: =T20+U20+V20 -> 0.0001715528484
A21: 2oo3 | B21: 3 | C21: 1 | D21: 0.0079 | E21: 0.75 | F21: 0.001975 | G21: 0.005925 | H21: 1 | I21: 0.00274 | J21: 0.17 | K21: 0.17 | L21: 1 | P21: =(1-J21)*F21*H21/2 -> 0.000819625 | R21: =(1-K21)*G21*I21 -> 1.3474635e-05 | T21: =3*P21^2*(4/3)^L21+6*P21*R21+3*R21^2 -> 2.753950146e-06 | U21: =J21*F21*H21/2 -> 0.000167875 | V21: =K21*G21*I21 -> 2.759865e-06 | W21: =T21+U21+V21 -> 0.0001733888151
B25: N | C25: f | D25: λd | E25: C | F25: λdu | G25: λdd | H25: T | I25: MDT | J25: β | K25: βD | L25: Sync?
B26: =B16 -> 3 | C26: =C16 -> 1 | D26: 0.0079 | E26: 0.75 | F26: 0.001975 | G26: 0.005925 | H26: 1 | I26: 0.00274 | J26: 0.17 | K26: 0.17 | L26: 1
A27: 0 | B27: =B26 -> 3 | C27: =C26 -> 1 | D27: 0.0079 | E27: 0.75 | F27: 0.001975 | G27: 0.005925 | H27: 1 | I27: 0.00274 | J27: 0.17 | K27: 0.17 | L27: 1 | M27: =IF((A27<C27+1),COMBIN(B27,C27),0) -> 3 | N27: =IF((A27<C27+1),COMBIN(C27,A27),0) -> 1 | O27: =IF((A27<C27+1),(2^(C27-A27)/(C27-A27+1))^L27,0) -> 1 | P27: =IF((A27<C27+1),(1-J27)*F27*H27/2,0) -> 0.000819625 | Q27: =IF((A27<C27+1),C27-A27,0) -> 1 | R27: =IF((A27<C27+1),(1-K27)*G27*I27,0) -> 1.3474635e-05 | S27: =IF((A27<C27+1),A27,0) -> 0 | T27: =IF((A27<C27+1),M27*N27*O27*P27^Q27*R27^S27,0) -> 0.002458875 | U27: =J27*F27 -> 0.00033575 | V27: =K27*G27 -> 0.00100725
A28: 1 | B28: =B27 -> 3 | C28: 1 | D28: 0.0079 | E28: 0.75 | F28: 0.001975 | G28: 0.005925 | H28: 1 | I28: 0.00274 | J28: 0.17 | K28: 0.17 | L28: 1 | M28: =IF((A28<C28+1),COMBIN(B28,C28),0) -> 3 | N28: =IF((A28<C28+1),COMBIN(C28,A28),0) -> 1 | O28: =IF((A28<C28+1),(2^(C28-A28)/(C28-A28+1))^L28,0) -> 1 | P28: =IF((A28<C28+1),(1-J28)*F28*H28/2,0) -> 0.000819625 | Q28: =IF((A28<C28+1),C28-A28,0) -> 0 | R28: =IF((A28<C28+1),(1-K28)*G28*I28,0) -> 1.3474635e-05 | S28: =IF((A28<C28+1),A28,0) -> 1 | T28: =IF((A28<C28+1),M28*N28*O28*P28^Q28*R28^S28,0) -> 4.0423905e-05
A29: 2 | B29: =B28 -> 3 | C29: 1 | D29: 0.0079 | E29: 0.75 | F29: 0.001975 | G29: 0.005925 | H29: 1 | I29: 0.00274 | J29: 0.17 | K29: 0.17 | L29: 1 | M29: 0 | N29: 0 | O29: 0 | P29: 0 | Q29: 0 | R29: 0 | S29: 0 | T29: 0
A30: 3 | B30: 3 | C30: 1 | D30: 0.0079 | E30: 0.75 | F30: 0.001975 | G30: 0.005925 | H30: 1 | I30: 0.00274 | J30: 0.17 | K30: 0.17 | L30: 1 | M30: 0 | N30: 0 | O30: 0 | P30: 0 | Q30: 0 | R30: 0 | S30: 0 | T30: 0
A31: 4 | B31: 3 | C31: 1 | D31: 0.0079 | E31: 0.75 | F31: 0.001975 | G31: 0.005925 | H31: 1 | I31: 0.00274 | J31: 0.17 | K31: 0.17 | L31: 1 | M31: 0 | N31: 0 | O31: 0 | P31: 0 | Q31: 0 | R31: 0 | S31: 0 | T31: 0
A32: 5 | B32: 3 | C32: 1 | D32: 0.0079 | E32: 0.75 | F32: 0.001975 | G32: 0.005925 | H32: 1 | I32: 0.00274 | J32: 0.17 | K32: 0.17 | L32: 1 | M32: 0 | N32: 0 | O32: 0 | P32: 0 | Q32: 0 | R32: 0 | S32: 0 | T32: 0
A33: 6 | B33: 3 | C33: 1 | D33: 0.0079 | E33: 0.75 | F33: 0.001975 | G33: 0.005925 | H33: 1 | I33: 0.00274 | J33: 0.17 | K33: 0.17 | L33: 1 | M33: 0 | N33: 0 | O33: 0 | P33: 0 | Q33: 0 | R33: 0 | S33: 0 | T33: 0
A34: 7 | B34: 3 | C34: 1 | D34: 0.0079 | E34: 0.75 | F34: 0.001975 | G34: 0.005925 | H34: 1 | I34: 0.00274 | J34: 0.17 | K34: 0.17 | L34: 1 | M34: 0 | N34: 0 | O34: 0 | P34: 0 | Q34: 0 | R34: 0 | S34: 0 | T34: 0
A35: 8 | B35: 3 | C35: 1 | D35: 0.0079 | E35: 0.75 | F35: 0.001975 | G35: 0.005925 | H35: 1 | I35: 0.00274 | J35: 0.17 | K35: 0.17 | L35: 1 | M35: 0 | N35: 0 | O35: 0 | P35: 0 | Q35: 0 | R35: 0 | S35: 0 | T35: 0
A36: 9 | B36: 3 | C36: 1 | D36: 0.0079 | E36: 0.75 | F36: 0.001975 | G36: 0.005925 | H36: 1 | I36: 0.00274 | J36: 0.17 | K36: 0.17 | L36: 1 | M36: 0 | N36: 0 | O36: 0 | P36: 0 | Q36: 0 | R36: 0 | S36: 0 | T36: 0
A37: 10 | B37: 3 | C37: 1 | D37: 0.0079 | E37: 0.75 | F37: 0.001975 | G37: 0.005925 | H37: 1 | I37: 0.00274 | J37: 0.17 | K37: 0.17 | L37: 1 | M37: 0 | N37: 0 | O37: 0 | P37: 0 | Q37: 0 | R37: 0 | S37: 0 | T37: 0 | W37: λd
B38: 3 | C38: 1 | D38: 0.0079 | E38: 0.75 | F38: 0.001975 | G38: 0.005925 | H38: 1 | I38: 0.00274 | J38: 0.17 | K38: 0.17 | L38: 1 | T38: =SUM(T27:T37)*(B38-C38)*D38 -> 3.94889227e-05 | U38: =IF((B38>1),SUM(U27:U37),0) -> 0.00033575 | V38: =IF((B38>1),SUM(V27:V37),0) -> 0.00100725 | W38: =T38+U38+V38 -> 0.001382488923
A41: 1oo1 | B41: 1 | C41: 0 | D41: 0.0079 | E41: 0.75 | F41: 0.001975 | G41: 0.005925 | H41: 1 | I41: 0.00274 | J41: 0.17 | K41: 0.17 | L41: 1 | W41: =D41 -> 0.0079
A42: 2oo2 | B42: 2 | C42: 1 | D42: =D41 -> 0.0079 | E42: 0.75 | F42: 0.001975 | G42: 0.005925 | H42: 1 | I42: 0.00274 | J42: 0.17 | K42: 0.17 | L42: 1 | P42: =(1-J42)*F42*H42/2 -> 0.000819625 | R42: =(1-K42)*G42*I42 -> 1.3474635e-05 | T42: =2*D42*(P42+R42) -> 1.316297423e-05 | U42: =J42*F42 -> 0.00033575 | V42: =K42*G42 -> 0.00100725 | W42: =T42+U42+V42 -> 0.001356162974
A43: 2oo3 | B43: 3 | C43: 1 | D43: 0.0079 | E43: 0.75 | F43: 0.001975 | G43: 0.005925 | H43: 1 | I43: 0.00274 | J43: 0.17 | K43: 0.17 | L43: 1 | P43: =(1-J43)*F43*H43/2 -> 0.000819625 | R43: =(1-K43)*G43*I43 -> 1.3474635e-05 | T43: =6*D43*(P43+R43) -> 3.94889227e-05 | U43: =J43*F43 -> 0.00033575 | V43: =K43*G43 -> 0.00100725 | W43: =T43+U43+V43 -> 0.001382488923

Sheet Coeff-stag-simplex (hidden)
A2: Coefficients needed for generation of PFDAV for staggered testing of N components in parallel
A3: E.g. for 3oo3 to fail:
A6: From deriving the first few rows, we can spot the algebraic progression (pattern) which the coefficients are subject to. The spreadsheet is used to repeat the formula.
A7: In the above example, the coefficients are 1, 3, 2
A8: For 4oo4 to fail, the coefficients turn out to be 1, 6, 11, 6 | P8: This column shows the ratio for simple redundancy to (PFD1oo1)N
A9: Below is the coefficient number pattern generator:
C12: 1 | D12: 2 | E12: 3 | F12: 4 | G12: 5 | H12: 6 | I12: 7 | J12: 8 | K12: 9 | L12: 10 | M12: 11 | N12: 12 | O12: 13 | P12: 14 | Q12: 15 | R12: 16 | S12: 17 | T12: 18 | U12: 19 | V12: 20
A14: 1 | C14: 1 | D14: =D13+($A14-1)*C13 -> 0 | E14: =E13+($A14-1)*D13 -> 0 | F14: =F13+($A14-1)*E13 -> 0 | G14: =G13+($A14-1)*F13 -> 0 | H14: =H13+($A14-1)*G13 -> 0 | I14: =I13+($A14-1)*H13 -> 0 | J14: =J13+($A14-1)*I13 -> 0 | K14: =K13+($A14-1)*J13 -> 0 | L14: =L13+($A14-1)*K13 -> 0 | M14: =M13+($A14-1)*L13 -> 0 | N14: =N13+($A14-1)*M13 -> 0 | O14: =O13+($A14-1)*N13 -> 0 | P14: =P13+($A14-1)*O13 -> 0 | Q14: =Q13+($A14-1)*P13 -> 0 | R14: =R13+($A14-1)*Q13 -> 0 | S14: =S13+($A14-1)*R13 -> 0 | T14: =T13+($A14-1)*S13 -> 0 | U14: =U13+($A14-1)*T13 -> 0 | V14: =V13+($A14-1)*U13 -> 0 | X14: 1
A15: 2 | C15: 1 | D15: 1 | E15: 0 | F15: 0 | G15: 0 | H15: 0 | I15: 0 | J15: 0 | K15: 0 | L15: 0 | M15: 0 | N15: 0 | O15: 0 | P15: 0 | Q15: 0 | R15: 0 | S15: 0 | T15: 0 | U15: 0 | V15: 0 | X15: 0.8333333333 | AB15: This is the PFD for 1ooN for staggered testing
A16: 3 | C16: 1 | D16: 3 | E16: 2 | F16: 0 | G16: 0 | H16: 0 | I16: 0 | J16: 0 | K16: 0 | L16: 0 | M16: 0 | N16: 0 | O16: 0 | P16: 0 | Q16: 0 | R16: 0 | S16: 0 | T16: 0 | U16: 0 | V16: 0 | X16: 0.6666666667
A17: 4 | C17: 1 | D17: 6 | E17: 11 | F17: 6 | G17: 0 | H17: 0 | I17: 0 | J17: 0 | K17: 0 | L17: 0 | M17: 0 | N17: 0 | O17: 0 | P17: 0 | Q17: 0 | R17: 0 | S17: 0 | T17: 0 | U17: 0 | V17: 0 | X17: 0.5229166667
A18: 5 | C18: 1 | D18: 10 | E18: 35 | F18: 50 | G18: 24 | H18: 0 | I18: 0 | J18: 0 | K18: 0 | L18: 0 | M18: 0 | N18: 0 | O18: 0 | P18: 0 | Q18: 0 | R18: 0 | S18: 0 | T18: 0 | U18: 0 | V18: 0 | X18: 0.4053333333
A19: 6 | C19: 1 | D19: 15 | E19: 85 | F19: 225 | G19: 274 | H19: 120 | I19: 0 | J19: 0 | K19: 0 | L19: 0 | M19: 0 | N19: 0 | O19: 0 | P19: 0 | Q19: 0 | R19: 0 | S19: 0 | T19: 0 | U19: 0 | V19: 0 | X19: 0.3116957345
A20: 7 | C20: 1 | D20: 21 | E20: 175 | F20: 735 | G20: 1624 | H20: 1764 | I20: 720 | J20: 0 | K20: 0 | L20: 0 | M20: 0 | N20: 0 | O20: 0 | P20: 0 | Q20: 0 | R20: 0 | S20: 0 | T20: 0 | U20: 0 | V20: 0 | X20: 0.2383134012
A21: 8 | C21: 1 | D21: 28 | E21: 322 | F21: 1960 | G21: 6769 | H21: 13132 | I21: 13068 | J21: 5040 | K21: 0 | L21: 0 | M21: 0 | N21: 0 | O21: 0 | P21: 0 | Q21: 0 | R21: 0 | S21: 0 | T21: 0 | U21: 0 | V21: 0 | X21: 0.18141293
A22: 9 | C22: 1 | D22: 36 | E22: 546 | F22: 4536 | G22: 22449 | H22: 67284 | I22: 118124 | J22: 109584 | K22: 40320 | L22: 0 | M22: 0 | N22: 0 | O22: 0 | P22: 0 | Q22: 0 | R22: 0 | S22: 0 | T22: 0 | U22: 0 | V22: 0 | X22: 0.1376243082
A23: 10 | C23: 1 | D23: 45 | E23: 870 | F23: 9450 | G23: 63273 | H23: 269325 | I23: 723680 | J23: 1172700 | K23: 1026576 | L23: 362880 | M23: 0 | N23: 0 | O23: 0 | P23: 0 | Q23: 0 | R23: 0 | S23: 0 | T23: 0 | U23: 0 | V23: 0 | X23: 0.1041154056
A24: 11 | C24: 1 | D24: 55 | E24: =E23+($A24-1)*D23 -> 1320 | F24: =F23+($A24-1)*E23 -> 18150 | G24: =G23+($A24-1)*F23 -> 157773 | H24: =H23+($A24-1)*G23 -> 902055 | I24: =I23+($A24-1)*H23 -> 3416930 | J24: =J23+($A24-1)*I23 -> 8409500 | K24: =K23+($A24-1)*J23 -> 12753576 | L24: =L23+($A24-1)*K23 -> 10628640 | M24: =M23+($A24-1)*L23 -> 3628800 | N24: =N23+($A24-1)*M23 -> 0 | O24: =O23+($A24-1)*N23 -> 0 | P24: =P23+($A24-1)*O23 -> 0 | Q24: =Q23+($A24-1)*P23 -> 0 | R24: =R23+($A24-1)*Q23 -> 0 | S24: 0 | T24: 0 | U24: 0 | V24: 0 | X24: 0.07858458751
A25: 12 | C25: 1 | D25: 66 | E25: 1925 | F25: 32670 | G25: 357423 | H25: 2637558 | I25: 13339535 | J25: 45995730 | K25: 105258076 | L25: 150917976 | M25: 120543840 | N25: 39916800 | O25: 0 | P25: 0 | Q25: 0 | R25: 0 | S25: 0 | T25: 0 | U25: 0 | V25: 0 | X25: 0.05919987769
A26: 13 | C26: 1 | D26: 78 | E26: 2717 | F26: 55770 | G26: 749463 | H26: 6926634 | I26: 44990231 | J26: 206070150 | K26: 657206836 | L26: 1414014888 | M26: 1931559552 | N26: 1486442880 | O26: 479001600 | P26: 0 | Q26: 0 | R26: 0 | S26: 0 | T26: 0 | U26: 0 | V26: 0 | X26: 0.04452338856
A27: 14 | C27: 1 | D27: 91 | E27: 3731 | F27: 91091 | G27: 1474473 | H27: 16669653 | I27: 135036473 | J27: 790943153 | K27: 3336118786 | L27: 9957703756 | M27: 20313753096 | N27: 26596717056 | O27: 19802759040 | P27: 6227020800 | Q27: 0 | R27: 0 | S27: 0 | T27: 0 | U27: 0 | V27: 0 | X27: 0.03343773959
A28: 15 | C28: 1 | D28: 105 | E28: 5005 | F28: 143325 | G28: 2749747 | H28: 37312275 | I28: 368411615 | J28: 2681453775 | K28: 14409322928 | L28: 56663366760 | M28: 159721605680 | N28: 310989260400 | O28: 392156797824 | P28: 283465647360 | Q28: 87178291200 | R28: 0 | S28: 0 | T28: 0 | U28: 0 | V28: 0 | X28: 0.02508102943
A29: 16 | C29: 1 | D29: 120 | E29: 6580 | F29: 218400 | G29: 4899622 | H29: 78558480 | I29: 928095740 | J29: 8207628000 | K29: 54631129553 | L29: 272803210680 | M29: 1009672107080 | N29: 2706813345600 | O29: 5056995703824 | P29: 6165817614720 | Q29: 4339163001600 | R29: 1307674368000 | S29: 0 | T29: 0 | U29: 0 | V29: 0 | X29: 0.01879220487
A30: 17 | C30: 1 | D30: 136 | E30: 8500 | F30: 323680 | G30: 8394022 | H30: 156952432 | I30: 2185031420 | J30: 23057159840 | K30: 185953177553 | L30: 1146901283528 | M30: 5374523477960 | N30: 18861567058880 | O30: 48366009233424 | P30: 87077748875904 | Q30: 102992244837120 | R30: 70734282393600 | S30: 20922789888000 | T30: 0 | U30: 0 | V30: 0 | X30: 0.01406653952
A31: 18 | C31: 1 | D31: 153 | E31: 10812 | F31: 468180 | G31: 13896582 | H31: 299650806 | I31: 4853222764 | J31: 60202693980 | K31: 577924894833 | L31: 4308105301929 | M31: 24871845297936 | N31: 110228466184200 | O31: 369012649234384 | P31: 909299905844112 | Q31: 1583313975727488 | R31: 1821602444624640 | S31: 1223405590579200 | T31: 355687428096000 | U31: 0 | V31: 0 | X31: 0.010520069
A32: 19 | C32: 1 | D32: 171 | E32: 13566 | F32: 662796 | G32: 22323822 | H32: 549789282 | I32: 10246937272 | J32: 147560703732 | K32: 1661573386473 | L32: 14710753408923 | M32: 102417740732658 | N32: 557921681547048 | O32: 2353125040549984 | P32: 7551527592063024 | Q32: 1.795071228e+16 | R32: 3.032125401e+16 | S32: 3.401224959e+16 | T32: 2.237698806e+16 | U32: 6402373705728000 | V32: 0 | X32: 0.007861574009
A33: 20 | C33: 1 | D33: 190 | E33: 16815 | F33: 920550 | G33: 34916946 | H33: 973941900 | I33: 20692933630 | J33: 342252511900 | K33: 4465226757381 | L33: 46280647751910 | M33: 381922055502195 | N33: 2503858755467550 | O33: 1.295363699e+16 | P33: 5.226090336e+16 | Q33: 1.614297365e+17 | R33: 3.713847873e+17 | S33: 6.101160757e+17 | T33: 6.686097303e+17 | U33: 4.315651468e+17 | V33: 1.216451004e+17 | X33: 0.005870733404
A84: 1 | B84: 2 | C84: 3 | D84: 4 | E84: 5 | F84: 6 | G84: 7 | H84: 8 | I84: 9 | J84: 10 | K84: 11 | L84: 12 | M84: 13 | N84: 14
A87: Staggered Proof Test Coefficients for NooM, generated by subroutine 'Coefficients_Stag' which calls 'Fav_for_selection' which calls 'Products_IooJ'
C88: 1 | D88: 2 | E88: 3 | F88: 4 | G88: 5 | H88: 6 | I88: 7 | J88: 8 | K88: 9 | L88: 10
A89: 1 | C89: 1
A90: 2 | C90: 1 | D90: 0.8333333333 | P90: Note: the leading diagonal returns the same coefficients as above (as expected)
A91: 3 | C91: 1 | D91: 0.8888888889 | E91: 0.6666666667
A92: 4 | C92: 1 | D92: 0.9166666667 | E92: 0.75 | F92: 0.5229166667
A93: 5 | C93: 1 | D93: 0.9333333333 | E93: 0.8 | F93: 0.6144 | G93: 0.4053333333
A94: 6 | C94: 1 | D94: 0.9444444444 | E94: 0.8333333333 | F94: 0.6765432099 | G94: 0.4938271605 | H94: 0.3116957345
A95: 7 | C95: 1 | D95: 0.9523809524 | E95: 0.8571428571 | F95: 0.7214771623 | G95: 0.5597667638 | H95: 0.3916735374 | I95: 0.2383134012
A96: 8 | C96: 1 | D96: 0.9583333333 | E96: 0.875 | F96: 0.75546875 | G96: 0.6106770833 | H96: 0.4557756696 | I96: 0.3076171875 | J96: 0.18141293
A97: 9 | C97: 1 | D97: 0.962962963 | E97: 0.8888888889 | F97: 0.7820759031 | G97: 0.6511202561 | H97: 0.5080483333 | I97: 0.3665806741 | J97: 0.2397841174 | K97: 0.1376243082
A98: 10 | C98: 1 | D98: 0.9666666667 | E98: 0.9 | F98: 0.8034666667 | G98: 0.684 | H98: 0.5513752381 | I98: 0.41696 | J98: 0.29200384 | K98: 0.18579456 | L98: 0.1041154056

Sheet Coeff-sync (hidden)
A2: Coefficients needed for generation of PFDAV for synchronised testing of N components in parallel
A4: 0 | C4: 1 | E4: Note: The row 0 is necessary to allow the program to work properly
A5: 1 | C5: =2^A5/(A5+1) -> 1
A6: 2 | C6: =2^A6/(A6+1) -> 1.333333333
A7: 3 | C7: 2
A8: 4 | C8: 3.2
A9: 5 | C9: 5.333333333
A10: 6 | C10: 9.142857143
A11: 7 | C11: 16
A12: 8 | C12: 28.44444444
A13: 9 | C13: 51.2
A14: 10 | C14: 93.09090909
A15: 11 | C15: 170.6666667
A16: 12 | C16: 315.0769231
A17: 13 | C17: 585.1428571
A18: 14 | C18: 1092.266667
A19: 15 | C19: 2048
A20: 16 | C20: 3855.058824
A21: 17 | C21: 7281.777778
A22: 18 | C22: 13797.05263
A23: 19 | C23: 26214.4
A24: 20 | C24: 49932.19048
A25: 21 | C25: 95325.09091
A26: 22 | C26: 182361.0435
A27: 23 | C27: 349525.3333
A28: 24 | C28: 671088.64
A29: 25 | C29: 1290555.077
A30: 26 | C30: 2485513.481
A31: 27 | C31: 4793490.286
A32: 28 | C32: 9256395.034
A33: 29 | C33: 17895697.07
A34: 30 | C34: 34636833.03
A35: 31 | C35: 67108864
A36: 32 | C36: 130150524.1
A37: 33 | C37: 252645135.1
A38: 34 | C38: 490853405.3
A39: 35 | C39: 954437176.9
A40: 36 | C40: 1857283155
A41: 37 | C41: 3616814565
A42: 38 | C42: 7048151460
A43: 39 | C43: 1.374389535e+10
A44: 40 | C44: 2.681735678e+10
A45: 41 | C45: 5.235769656e+10
A46: 42 | C46: 1.022801514e+11
A47: 43 | C47: 1.999112051e+11
A48: 44 | C48: 3.909374677e+11
A49: 45 | C49: 7.648776541e+11
A50: 46 | C50: 1.497207323e+12
A51: 47 | C51: 2.932031007e+12
A52: 48 | C52: 5.74438728e+12
A53: 49 | C53: 1.125899907e+13
A54: 50 | C54: 2.207646876e+13

Sheet Coeff-stag (hidden)
A1: Staggered Proof Test Coefficients for NooM, generated by subroutine 'Coefficients_Stag' which calls 'Fav_for_selection' which calls 'Products_IooJ'
B2: 0 | C2: 1 | D2: 2 | E2: 3 | F2: 4 | G2: 5 | H2: 6 | I2: 7 | J2: 8 | K2: 9 | L2: 10 | M2: 11 | N2: 12 | O2: 13 | P2: 14 | Q2: 15 | R2: 16 | S2: 17 | T2: 18 | U2: 19 | V2: 20 | W2: 21 | X2: 22 | Y2: 23 | Z2: 24 | AA2: 25 | AB2: 26 | AC2: 27 | AD2: 28 | AE2: 29 | AF2: 30 | AG2: 31 | AH2: 32 | AI2: 33 | AJ2: 34 | AK2: 35 | AL2: 36 | AM2: 37 | AN2: 38 | AO2: 39 | AP2: 40 | AQ2: 41 | AR2: 42 | AS2: 43 | AT2: 44 | AU2: 45 | AV2: 46 | AW2: 47 | AX2: 48 | AY2: 49 | AZ2: 50
A3: 0 | B3: 1 | C3: 1 | I3: Note: The rows and columns 0 are necessary to make the program work
A4: 1 | B4: 1 | C4: 1 | I4: The numbers in blue are estimates.
A5: 2 | B5: 1 | C5: 1 | D5: 0.8333333333
A6: 3 | B6: 1 | C6: 1 | D6: 0.8888888889 | E6: 0.6666666667
A7: 4 | B7: 1 | C7: 1 | D7: 0.9166666667 | E7: 0.75 | F7: 0.5229166667
A8: 5 | B8: 1 | C8: 1 | D8: 0.9333333333 | E8: 0.8 | F8: 0.6144 | G8: 0.4053333333
A9: 6 | B9: 1 | C9: 1 | D9: 0.9444444444 | E9: 0.8333333333 | F9: 0.6765432099 | G9: 0.4938271605 | H9: 0.3116957345
A10: 7 | B10: 1 | C10: 1 | D10: 0.9523809524 | E10: 0.8571428571 | F10: 0.7214771623 | G10: 0.5597667638 | H10: 0.3916735374 | I10: 0.2383134012
A11: 8 | B11: 1 | C11: 1 | D11: 0.9583333333 | E11: 0.875 | F11: 0.75546875 | G11: 0.6106770833 | H11: 0.4557756696 | I11: 0.3076171875 | J11: 0.18141293
A12: 9 | B12: 1 | C12: 1 | D12: 0.962962963 | E12: 0.8888888889 | F12: 0.7820759031 | G12: 0.6511202561 | H12: 0.5080483333 | I12: 0.3665806741 | J12: 0.2397841174 | K12: 0.1376243082
A13: 10 | B13: 1 | C13: 1 | D13: 0.9666666667 | E13: 0.9 | F13: 0.8034666667 | G13: 0.6835 | H13: 0.5513752381 | I13: 0.41696 | J13: 0.29200384 | K13: 0.18579456 | L13: 0.1041154056
A14: 11 | B14: 1 | C14: 1 | D14: 0.97 | E14: 0.909 | F14: 0.82 | G14: 0.709 | H14: 0.584 | I14: 0.46 | J14: 0.34 | K14: 0.234 | L14: 0.15 | M14: 0.07858458751
A15: 12 | B15: 1 | C15: 1 | D15: 0.972 | E15: 0.919 | F15: 0.83 | G15: 0.729 | H15: 0.61 | I15: 0.495 | J15: 0.378 | K15: 0.277 | L15: 0.196 | M15: 0.12 | N15: 0.05919987769
A16: 13 | B16: 1 | C16: 1 | D16: 0.9735 | E16: 0.925 | F16: 0.8415 | G16: 0.7445 | H16: 0.635 | I16: 0.52 | J16: 0.41 | K16: 0.315 | L16: 0.23 | M16: 0.157 | N16: 0.093 | O16: 0.04452338856
A17: 14 | B17: 1 | C17: 1 | D17: 0.9748 | E17: 0.929 | F17: 0.8495 | G17: 0.756 | H17: 0.655 | I17: 0.546 | J17: 0.4355 | K17: 0.345 | L17: 0.265 | M17: 0.19 | N17: 0.129 | O17: 0.075 | P17: 0.03343773959
A18: 15 | B18: 1 | C18: 1 | D18: 0.975 | E18: 0.932 | F18: 0.8565 | G18: 0.768 | H18: 0.671 | I18: 0.565 | J18: 0.458 | K18: 0.373 | L18: 0.29 | M18: 0.219 | N18: 0.159 | O18: 0.101 | P18: 0.058 | Q18: 0.02508102943
A19: 16 | B19: 1 | C19: 1 | D19: 0.976 | E19: 0.934 | F19: 0.865 | G19: 0.778 | H19: 0.687 | I19: 0.58 | J19: 0.475 | K19: 0.395 | L19: 0.3145 | M19: 0.242 | N19: 0.185 | O19: 0.124 | P19: 0.079 | Q19: 0.0465 | R19: 0.01879220487
A20: 17 | B20: 1 | C20: 1 | D20: 0.9765 | E20: 0.9355 | F20: 0.87 | G20: 0.788 | H20: 0.701 | I20: 0.596 | J20: 0.49 | K20: 0.413 | L20: 0.333 | M20: 0.263 | N20: 0.2055 | O20: 0.145 | P20: 0.099 | Q20: 0.066 | R20: 0.036 | S20: 0.01406653952
A21: 18 | B21: 1 | C21: 1 | D21: 0.9768 | E21: 0.9366 | F21: 0.878 | G21: 0.797 | H21: 0.715 | I21: 0.607 | J21: 0.504 | K21: 0.429 | L21: 0.35 | M21: 0.28 | N21: 0.2228 | O21: 0.163 | P21: 0.1175 | Q21: 0.083 | R21: 0.0515 | S21: 0.028 | T21: 0.010520069
A22: 19 | B22: 1 | C22: 1 | D22: 0.977 | E22: 0.9372 | F22: 0.883 | G22: 0.805 | H22: 0.722 | I22: 0.62 | J22: 0.5185 | K22: 0.442 | L22: 0.367 | M22: 0.295 | N22: 0.2385 | O22: 0.18 | P22: 0.134 | Q22: 0.0985 | R22: 0.065 | S22: 0.0397 | T22: 0.0236 | U22: 0.007861574009
A23: 20 | B23: 1 | C23: 1 | D23: 0.9772 | E23: 0.9375 | F23: 0.89 | G23: 0.81 | H23: 0.73 | I23: 0.63 | J23: 0.533 | K23: 0.455 | L23: 0.38 | M23: 0.31 | N23: 0.253 | O23: 0.195 | P23: 0.15 | Q23: 0.11 | R23: 0.077 | S23: 0.05 | T23: 0.033 | U23: 0.015 | V23: 0.005870733404
A24: 21
A25: 22
A26: 23
A27: 24
A28: 25
A29: 26
A30: 27
A31: 28
A32: 29
A33: 30
A34: 31
A35: 32
A36: 33
A37: 34
A38: 35
A39: 36
A40: 37
A41: 38
A42: 39
A43: 40
A44: 41
A45: 42
A46: 43
A47: 44
A48: 45
A49: 46
A50: 47
A51: 48
A52: 49
A53: 50
A55: This is just a copy | C55: 1
C56: 1 | D56: 0.8333333333
C57: 1 | D57: 0.8888888889 | E57: 0.6666666667
C58: 1 | D58: 0.9166666667 | E58: 0.75 | F58: 0.5229166667
C59: 1 | D59: 0.9333333333 | E59: 0.8 | F59: 0.6144 | G59: 0.4053333333
C60: 1 | D60: 0.9444444444 | E60: 0.8333333333 | F60: 0.6765432099 | G60: 0.4938271605 | H60: 0.3116957345
C61: 1 | D61: 0.9523809524 | E61: 0.8571428571 | F61: 0.7214771623 | G61: 0.5597667638 | H61: 0.3916735374 | I61: 0.2383134012
C62: 1 | D62: 0.9583333333 | E62: 0.875 | F62: 0.75546875 | G62: 0.6106770833 | H62: 0.4557756696 | I62: 0.3076171875 | J62: 0.18141293
C63: 1 | D63: 0.962962963 | E63: 0.8888888889 | F63: 0.7820759031 | G63: 0.6511202561 | H63: 0.5080483333 | I63: 0.3665806741 | J63: 0.2397841174 | K63: 0.1376243082
C64: 1 | D64: 0.9666666667 | E64: 0.9 | F64: 0.8034666667 | G64: 0.684 | H64: 0.5513752381 | I64: 0.41696 | J64: 0.29200384 | K64: 0.18579456 | L64: 0.1041154056
A66: This is the series of numbers printed out during a test to demonstrate that the constituents of the integer vector S() are what you would expect for combinations of 4 integers in the range 1 to 7.
H67: 1 | I67: 2 | J67: 3 | K67: 4
H68: 1 | I68: 2 | J68: 3 | K68: 5
H69: 1 | I69: 2 | J69: 3 | K69: 6
H70: 1 | I70: 2 | J70: 3 | K70: 7
H71: 1 | I71: 2 | J71: 4 | K71: 5
H72: 1 | I72: 2 | J72: 4 | K72: 6
H73: 1 | I73: 2 | J73: 4 | K73: 7
H74: 1 | I74: 2 | J74: 5 | K74: 6
H75: 1 | I75: 2 | J75: 5 | K75: 7
H76: 1 | I76: 2 | J76: 6 | K76: 7
H77: 1 | I77: 3 | J77: 4 | K77: 5
H78: 1 | I78: 3 | J78: 4 | K78: 6
H79: 1 | I79: 3 | J79: 4 | K79: 7
H80: 1 | I80: 3 | J80: 5 | K80: 6
H81: 1 | I81: 3 | J81: 5 | K81: 7
H82: 1 | I82: 3 | J82: 6 | K82: 7
H83: 1 | I83: 4 | J83: 5 | K83: 6
H84: 1 | I84: 4 | J84: 5 | K84: 7
H85: 1 | I85: 4 | J85: 6 | K85: 7
H86: 1 | I86: 5 | J86: 6 | K86: 7
H87: 2 | I87: 3 | J87: 4 | K87: 5
H88: 2 | I88: 3 | J88: 4 | K88: 6
H89: 2 | I89: 3 | J89: 4 | K89: 7
H90: 2 | I90: 3 | J90: 5 | K90: 6
H91: 2 | I91: 3 | J91: 5 | K91: 7
H92: 2 | I92: 3 | J92: 6 | K92: 7
H93: 2 | I93: 4 | J93: 5 | K93: 6
H94: 2 | I94: 4 | J94: 5 | K94: 7
H95: 2 | I95: 4 | J95: 6 | K95: 7
H96: 2 | I96: 5 | J96: 6 | K96: 7
H97: 3 | I97: 4 | J97: 5 | K97: 6
H98: 3 | I98: 4 | J98: 5 | K98: 7
H99: 3 | I99: 4 | J99: 6 | K99: 7
H100: 3 | I100: 5 | J100: 6 | K100: 7
H101: 4 | I101: 5 | J101: 6 | K101: 7

Sheet Combin (hidden)
A2: Combinations
C3: 0 | D3: 1 | E3: 2 | F3: 3 | G3: 4 | H3: 5 | I3: 6 | J3: 7 | K3: 8 | L3: 9 | M3: 10 | N3: 11 | O3: 12 | P3: 13 | Q3: 14 | R3: 15 | S3: 16 | T3: 17 | U3: 18 | V3: 19 | W3: 20 | X3: 21 | Y3: 22 | Z3: 23 | AA3: 24 | AB3: 25 | AC3: 26 | AD3: 27 | AE3: 28 | AF3: 29 | AG3: 30 | AH3: 31 | AI3: 32 | AJ3: 33 | AK3: 34 | AL3: 35 | AM3: 36 | AN3: 37 | AO3: 38 | AP3: 39 | AQ3: 40 | AR3: 41 | AS3: 42 | AT3: 43 | AU3: 44 | AV3: 45 | AW3: 46 | AX3: 47 | AY3: 48 | AZ3: 49 | BA3: 50
A4: 0 | C4: =COMBIN($A4,C$3) -> 1
A5: 1 | C5: 1 | D5: 1
A6: 2 | C6: 1 | D6: 2 | E6: 1
A7: 3 | C7: 1 | D7: 3 | E7: 3 | F7: 1
A8: 4 | C8: 1 | D8: 4 | E8: 6 | F8: 4 | G8: 1
A9: 5 | C9: 1 | D9: 5 | E9: 10 | F9: 10 | G9: 5 | H9: 1
A10: 6 | C10: 1 | D10: 6 | E10: 15 | F10: 20 | G10: 15 | H10: 6 | I10: 1
A11: 7 | C11: 1 | D11: 7 | E11: 21 | F11: 35 | G11: 35 | H11: 21 | I11: 7 | J11: 1
A12: 8 | C12: 1 | D12: 8 | E12: 28 | F12: 56 | G12: 70 | H12: 56 | I12: 28 | J12: 8 | K12: 1
A13: 9 | C13: 1 | D13: 9 | E13: 36 | F13: 84 | G13: 126 | H13: 126 | I13: 84 | J13: 36 | K13: 9 | L13: 1
A14: 10 | C14: 1 | D14: 10 | E14: 45 | F14: 120 | G14: 210 | H14: 252 | I14: 210 | J14: 120 | K14: 45 | L14: 10 | M14: 1
A15: 11 | C15: 1 | D15: 11 | E15: 55 | F15: 165 | G15: 330 | H15: 462 | I15: 462 | J15: 330 | K15: 165 | L15: 55 | M15: 11 | N15: 1
A16: 12 | C16: 1 | D16: 12 | E16: 66 | F16: 220 | G16: 495 | H16: 792 | I16: 924 | J16: 792 | K16: 495 | L16: 220 | M16: 66 | N16: 12 | O16: 1
A17: 13 | C17: 1 | D17: 13 | E17: 78 | F17: 286 | G17: 715 | H17: 1287 | I17: 1716 | J17: 1716 | K17: 1287 | L17: 715 | M17: 286 | N17: 78 | O17: 13 | P17: 1
A18: 14 | C18: 1 | D18: 14 | E18: 91 | F18: 364 | G18: 1001 | H18: 2002 | I18: 3003 | J18: 3432 | K18: 3003 | L18: 2002 | M18: 1001 | N18: 364 | O18: 91 | P18: 14 | Q18: 1
A19: 15 | C19: 1 | D19: 15 | E19: 105 | F19: 455 | G19: 1365 | H19: 3003 | I19: 5005 | J19: 6435 | K19: 6435 | L19: 5005 | M19: 3003 | N19: 1365 | O19: 455 | P19: 105 | Q19: 15 | R19: =COMBIN($A19,R$3) -> 1
A20: 16 | C20: =COMBIN($A20,C$3) -> 1 | D20: 16 | E20: 120 | F20: 560 | G20: 1820 | H20: 4368 | I20: 8008 | J20: 11440 | K20: 12870 | L20: 11440 | M20: 8008 | N20: 4368 | O20: 1820 | P20: 560 | Q20: 120 | R20: 16 | S20: =COMBIN($A20,S$3) -> 1
A21: 17 | C21: 1 | D21: 17 | E21: 136 | F21: 680 | G21: 2380 | H21: 6188 | I21: 12376 | J21: 19448 | K21: 24310 | L21: 24310 | M21: 19448 | N21: 12376 | O21: 6188 | P21: 2380 | Q21: 680 | R21: 136 | S21: 17 | T21: 1
A22: 18 | C22: 1 | D22: 18 | E22: 153 | F22: 816 | G22: 3060 | H22: 8568 | I22: 18564 | J22: 31824 | K22: 43758 | L22: 48620 | M22: 43758 | N22: 31824 | O22: 18564 | P22: 8568 | Q22: 3060 | R22: 816 | S22: 153 | T22: 18 | U22: 1
A23: 19 | C23: 1 | D23: 19 | E23: 171 | F23: 969 | G23: 3876 | H23: 11628 | I23: 27132 | J23: 50388 | K23: 75582 | L23: 92378 | M23: 92378 | N23: 75582 | O23: 50388 | P23: 27132 | Q23: 11628 | R23: 3876 | S23: 969 | T23: 171 | U23: 19 | V23: 1
A24: 20 | C24: 1 | D24: 20 | E24: 190 | F24: 1140 | G24: 4845 | H24: 15504 | I24: 38760 | J24: 77520 | K24: 125970 | L24: 167960 | M24: 184756 | N24: 167960 | O24: 125970 | P24: 77520 | Q24: 38760 | R24: 15504 | S24: 4845 | T24: 1140 | U24: 190 | V24: 20 | W24: 1
A25: 21 | C25: 1 | D25: 21 | E25: 210 | F25: 1330 | G25: 5985 | H25: 20349 | I25: 54264 | J25: 116280 | K25: 203490 | L25: 293930 | M25: 352716 | N25: 352716 | O25: 293930 | P25: 203490 | Q25: 116280 | R25: 54264 | S25: 20349 | T25: 5985 | U25: 1330 | V25: 210 | W25: 21 | X25: 1
A26: 22 | C26: 1 | D26: 22 | E26: 231 | F26: 1540 | G26: 7315 | H26: 26334 | I26: 74613 | J26: 170544 | K26: 319770 | L26: 497420 | M26: 646646 | N26: 705432 | O26: 646646 | P26: 497420 | Q26: 319770 | R26: 170544 | S26: 74613 | T26: 26334 | U26: 7315 | V26: 1540 | W26: 231 | X26: 22 | Y26: 1
A27: 23 | C27: 1 | D27: 23 | E27: 253 | F27: 1771 | G27: 8855 | H27: 33649 | I27: 100947 | J27: 245157 | K27: 490314 | L27: 817190 | M27: 1144066 | N27: 1352078 | O27: 1352078 | P27: 1144066 | Q27: 817190 | R27: 490314 | S27: 245157 | T27: 100947 | U27: 33649 | V27: 8855 | W27: 1771 | X27: 253 | Y27: 23 | Z27: 1
A28: 24 | C28: 1 | D28: 24 | E28: 276 | F28: 2024 | G28: 10626 | H28: 42504 | I28: 134596 | J28: 346104 | K28: 735471 | L28: 1307504 | M28: 1961256 | N28: 2496144 | O28: 2704156 | P28: 2496144 | Q28: 1961256 | R28: 1307504 | S28: =COMBIN($A28,S$3) -> 735471 | T28: 346104 | U28: 134596 | V28: 42504 | W28: 10626 | X28: 2024 | Y28: 276 | Z28: 24 | AA28: 1
A29: 25 | C29: 1 | D29: 25 | E29: 300 | F29: 2300 | G29: 12650 | H29: 53130 | I29: 177100 | J29: 480700 | K29: 1081575 | L29: 2042975 | M29: 3268760 | N29: 4457400 | O29: 5200300 | P29: 5200300 | Q29: 4457400 | R29: 3268760 | S29: 2042975 | T29: 1081575 | U29: 480700 | V29: 177100 | W29: 53130 | X29: 12650 | Y29: 2300 | Z29: 300 | AA29: 25 | AB29: 1
A30: 26 | C30: 1 | D30: 26 | E30: 325 | F30: 2600 | G30: 14950 | H30: 65780 | I30: 230230 | J30: 657800 | K30: 1562275 | L30: 3124550 | M30: 5311735 | N30: 7726160 | O30: 9657700 | P30: 10400600 | Q30: 9657700 | R30: 7726160 | S30: 5311735 | T30: 3124550 | U30: 1562275 | V30: 657800 | W30: 230230 | X30: 65780 | Y30: 14950 | Z30: 2600 | AA30: 325 | AB30: 26 | AC30: 1
A31: 27 | C31: 1 | D31: 27 | E31: 351 | F31: 2925 | G31: 17550 | H31: 80730 | I31: 296010 | J31: 888030 | K31: 2220075 | L31: 4686825 | M31: 8436285 | N31: 13037895 | O31: 17383860 | P31: 20058300 | Q31: 20058300 | R31: 17383860 | S31: 13037895 | T31: 8436285 | U31: 4686825 | V31: 2220075 | W31: 888030 | X31: 296010 | Y31: 80730 | Z31: 17550 | AA31: 2925 | AB31: 351 | AC31: 27 | AD31: 1
A32: 28 | C32: 1 | D32: 28 | E32: 378 | F32: 3276 | G32: 20475 | H32: 98280 | I32: 376740 | J32: 1184040 | K32: 3108105 | L32: 6906900 | M32: 13123110 | N32: 21474180 | O32: 30421755 | P32: 37442160 | Q32: 40116600 | R32: 37442160 | S32: 30421755 | T32: 21474180 | U32: 13123110 | V32: 6906900 | W32: 3108105 | X32: 1184040 | Y32: 376740 | Z32: 98280 | AA32: 20475 | AB32: 3276 | AC32: 378 | AD32: 28 | AE32: 1
A33: 29 | C33: 1 | D33: 29 | E33: 406 | F33: 3654 | G33: 23751 | H33: 118755 | I33: 475020 | J33: 1560780 | K33: 4292145 | L33: 10015005 | M33: 20030010 | N33: 34597290 | O33: 51895935 | P33: 67863915 | Q33: 77558760 | R33: 77558760 | S33: 67863915 | T33: 51895935 | U33: 34597290 | V33: 20030010 | W33: 10015005 | X33: 4292145 | Y33: 1560780 | Z33: 475020 | AA33: 118755 | AB33: 23751 | AC33: 3654 | AD33: 406 | AE33: 29 | AF33: 1
A34: 30 | C34: 1 | D34: 30 | E34: 435 | F34: 4060 | G34: 27405 | H34: 142506 | I34: 593775 | J34: 2035800 | K34: 5852925 | L34: 14307150 | M34: 30045015 | N34: 54627300 | O34: 86493225 | P34: 119759850 | Q34: 145422675 | R34: 155117520 | S34: 145422675 | T34: 119759850 | U34: 86493225 | V34: 54627300 | W34: 30045015 | X34: 14307150 | Y34: 5852925 | Z34: 2035800 | AA34: 593775 | AB34: 142506 | AC34: 27405 | AD34: 4060 | AE34: 435 | AF34: 30 | AG34: 1
A35: 31 | C35: 1 | D35: 31 | E35: 465 | F35: 4495 | G35: 31465 | H35: 169911 | I35: 736281 | J35: 2629575 | K35: 7888725 | L35: 20160075 | M35: 44352165 | N35: 84672315 | O35: 141120525 | P35: 206253075 | Q35: 265182525 | R35: =COMBIN($A35,R$3) -> 300540195 | S35: 300540195 | T35: 265182525 | U35: 206253075 | V35: 141120525 | W35: 84672315 | X35: 44352165 | Y35: 20160075 | Z35: 7888725 | AA35: 2629575 | AB35: 736281 | AC35: 169911 | AD35: 31465 | AE35: 4495 | AF35: 465 | AG35: 31 | AH35: 1
A36: 32 | C36: =COMBIN($A36,C$3) -> 1 | D36: 32 | E36: 496 | F36: 4960 | G36: 35960 | H36: 201376 | I36: 906192 | J36: 3365856 | K36: 10518300 | L36: 28048800 | M36: 64512240 | N36: 129024480 | O36: 225792840 | P36: 347373600 | Q36: 471435600 | R36: 565722720 | S36: 601080390 | T36: 565722720 | U36: 471435600 | V36: 347373600 | W36: 225792840 | X36: 129024480 | Y36: 64512240 | Z36: 28048800 | AA36: 10518300 | AB36: 3365856 | AC36: 906192 | AD36: 201376 | AE36: 35960 | AF36: 4960 | AG36: 496 | AH36: 32 | AI36: =COMBIN($A36,AI$3) -> 1
A37: 33 | C37: 1 | D37: 33 | E37: 528 | F37: 5456 | G37: 40920 | H37: 237336 | I37: 1107568 | J37: 4272048 | K37: 13884156 | L37: 38567100 | M37: 92561040 | N37: 193536720 | O37: 354817320 | P37: 573166440 | Q37: 818809200 | R37: 1037158320 | S37: 1166803110 | T37: 1166803110 | U37: 1037158320 | V37: 818809200 | W37: 573166440 | X37: 354817320 | Y37: 193536720 | Z37: 92561040 | AA37: 38567100 | AB37: 13884156 | AC37: 4272048 | AD37: 1107568 | AE37: 237336 | AF37: 40920 | AG37: 5456 | AH37: 528 | AI37: 33 | AJ37: 1
A38: 34 | C38: 1 | D38: 34 | E38: 561 | F38: 5984 | G38: 46376 | H38: 278256 | I38: 1344904 | J38: 5379616 | K38: 18156204 | L38: 52451256 | M38: 131128140 | N38: 286097760 | O38: 548354040 | P38: 927983760 | Q38: 1391975640 | R38: 1855967520 | S38: 2203961430 | T38: 2333606220 | U38: 2203961430 | V38: 1855967520 | W38: 1391975640 | X38: 927983760 | Y38: 548354040 | Z38: 286097760 | AA38: 131128140 | AB38: 52451256 | AC38: 18156204 | AD38: 5379616 | AE38: 1344904 | AF38: 278256 | AG38: 46376 | AH38: 5984 | AI38: 561 | AJ38: 34 | AK38: 1
A39: 35 | C39: 1 | D39: 35 | E39: 595 | F39: 6545 | G39: 52360 | H39: 324632 | I39: 1623160 | J39: 6724520 | K39: 23535820 | L39: 70607460 | M39: 183579396 | N39: 417225900 | O39: 834451800 | P39: 1476337800 | Q39: 2319959400 | R39: 3247943160 | S39: 4059928950 | T39: 4537567650 | U39: 4537567650 | V39: 4059928950 | W39: 3247943160 | X39: 2319959400 | Y39: 1476337800 | Z39: 834451800 | AA39: 417225900 | AB39: 183579396 | AC39: 70607460 | AD39: 23535820 | AE39: 6724520 | AF39: 1623160 | AG39: 324632 | AH39: 52360 | AI39: 6545 | AJ39: 595 | AK39: 35 | AL39: 1
A40: 36 | C40: 1 | D40: 36 | E40: 630 | F40: 7140 | G40: 58905 | H40: 376992 | I40: 1947792 | J40: 8347680 | K40: 30260340 | L40: 94143280 | M40: 254186856 | N40: 600805296 | O40: 1251677700 | P40: 2310789600 | Q40: 3796297200 | R40: 5567902560 | S40: 7307872110 | T40: 8597496600 | U40: 9075135300 | V40: 8597496600 | W40: 7307872110 | X40: 5567902560 | Y40: 3796297200 | Z40: 2310789600 | AA40: 1251677700 | AB40: 600805296 | AC40: 254186856 | AD40: 94143280 | AE40: 30260340 | AF40: 8347680 | AG40: 1947792 | AH40: 376992 | AI40: 58905 | AJ40: 7140 | AK40: 630 | AL40: 36 | AM40: 1
A41: 37 | C41: 1 | D41: 37 | E41: 666 | F41: 7770 | G41: 66045 | H41: 435897 | I41: 2324784 | J41: 10295472 | K41: 38608020 | L41: 124403620 | M41: 348330136 | N41: 854992152 | O41: 1852482996 | P41: 3562467300 | Q41: 6107086800 | R41: 9364199760 | S41: 1.287577467e+10 | T41: 15905368710 | U41: 1.76726319e+10 | V41: 1.76726319e+10 | W41: 15905368710 | X41: 1.287577467e+10 | Y41: 9364199760 | Z41: 6107086800 | AA41: 3562467300 | AB41: 1852482996 | AC41: 854992152 | AD41: 348330136 | AE41: 124403620 | AF41: 38608020 | AG41: 10295472 | AH41: 2324784 | AI41: 435897 | AJ41: 66045 | AK41: 7770 | AL41: 666 | AM41: 37 | AN41: 1
A42: 38 | C42: 1 | D42: 38 | E42: 703 | F42: 8436 | G42: 73815 | H42: 501942 | I42: 2760681 | J42: 12620256 | K42: 48903492 | L42: 163011640 | M42: 472733756 | N42: 1203322288 | O42: 2707475148 | P42: 5414950296 | Q42: 9669554100 | R42: 1.547128656e+10 | S42: 22239974430 | T42: 2.878114338e+10 | U42: 3.357800061e+10 | V42: 3.53452638e+10 | W42: 3.357800061e+10 | X42: 2.878114338e+10 | Y42: 22239974430 | Z42: 1.547128656e+10 | AA42: 9669554100 | AB42: 5414950296 | AC42: 2707475148 | AD42: 1203322288 | AE42: 472733756 | AF42: 163011640 | AG42: 48903492 | AH42: 12620256 | AI42: 2760681 | AJ42: 501942 | AK42: 73815 | AL42: 8436 | AM42: 703 | AN42: 38 | AO42: 1
A43: 39 | C43: 1 | D43: 39 | E43: 741 | F43: 9139 | G43: 82251 | H43: 575757 | I43: 3262623 | J43: 15380937 | K43: 61523748 | L43: 211915132 | M43: 635745396 | N43: 1676056044 | O43: 3910797436 | P43: 8122425444 | Q43: 1.50845044e+10 | R43: 2.514084066e+10 | S43: 3.771126099e+10 | T43: 51021117810 | U43: 6.235914399e+10 | V43: 6.892326441e+10 | W43: 6.892326441e+10 | X43: 6.235914399e+10 | Y43: 51021117810 | Z43: 3.771126099e+10 | AA43: 2.514084066e+10 | AB43: 1.50845044e+10 | AC43: 8122425444 | AD43: 3910797436 | AE43: 1676056044 | AF43: 635745396 | AG43: 211915132 | AH43: =COMBIN($A43,AH$3) -> 61523748 | AI43: 15380937 | AJ43: 3262623 | AK43: 575757 | AL43: 82251 | AM43: 9139 | AN43: 741 | AO43: 39 | AP43: 1
A44: 40 | C44: 1 | D44: 40 | E44: 780 | F44: 9880 | G44: 91390 | H44: 658008 | I44: 3838380 | J44: 18643560 | K44: 76904685 | L44: 273438880 | M44: 847660528 | N44: 2311801440 | O44: 5586853480 | P44: 1.203322288e+10 | Q44: 2.320692984e+10 | R44: 4.022534506e+10 | S44: =COMBIN($A44,S$3) -> 6.285210165e+10 | T44: 8.87323788e+10 | U44: 113380261800 | V44: 1.312824084e+11 | W44: 1.378465288e+11 | X44: 1.312824084e+11 | Y44: 113380261800 | Z44: 8.87323788e+10 | AA44: 6.285210165e+10 | AB44: 4.022534506e+10 | AC44: 2.320692984e+10 | AD44: 1.203322288e+10 | AE44: 5586853480 | AF44: 2311801440 | AG44: 847660528 | AH44: 273438880 | AI44: 76904685 | AJ44: 18643560 | AK44: 3838380 | AL44: 658008 | AM44: 91390 | AN44: 9880 | AO44: 780 | AP44: 40 | AQ44: 1
A45: 41 | C45: 1 | D45: 41 | E45: 820 | F45: 10660 | G45: 101270 | H45: 749398 | I45: 4496388 | J45: 22481940 | K45: 95548245 | L45: 350343565 | M45: 1121099408 | N45: 3159461968 | O45: 7898654920 | P45: 1.762007636e+10 | Q45: 3.524015272e+10 | R45: 6.34322749e+10 | S45: 1.030774467e+11 | T45: 1.515844804e+11 | U45: 2.021126406e+11 | V45: 244662670200 | W45: 2.691289372e+11 | X45: 2.691289372e+11 | Y45: 244662670200 | Z45: 2.021126406e+11 | AA45: 1.515844804e+11 | AB45: 1.030774467e+11 | AC45: 6.34322749e+10 | AD45: 3.524015272e+10 | AE45: 1.762007636e+10 | AF45: 7898654920 | AG45: 3159461968 | AH45: 1121099408 | AI45: 350343565 | AJ45: 95548245 | AK45: 22481940 | AL45: 4496388 | AM45: 749398 | AN45: 101270 | AO45: 10660 | AP45: 820 | AQ45: 41 | AR45: 1
A46: 42 | C46: 1 | D46: 42 | E46: 861 | F46: 11480 | G46: 111930 | H46: 850668 | I46: 5245786 | J46: 26978328 | K46: 118030185 | L46: 445891810 | M46: 1471442973 | N46: 4280561376 | O46: 1.105811689e+10 | P46: 25518731280 | Q46: 5.286022908e+10 | R46: 98672427616 | S46: 1.665097216e+11 | T46: 2.546619272e+11 | U46: 3.53697121e+11 | V46: 4.467753108e+11 | W46: 5.137916074e+11 | X46: 5.382578744e+11 | Y46: 5.137916074e+11 | Z46: 4.467753108e+11 | AA46: 3.53697121e+11 | AB46: 2.546619272e+11 | AC46: 1.665097216e+11 | AD46: 98672427616 | AE46: 5.286022908e+10 | AF46: 25518731280 | AG46: 1.105811689e+10 | AH46: 4280561376 | AI46: 1471442973 | AJ46: 445891810 | AK46: 118030185 | AL46: 26978328 | AM46: 5245786 | AN46: 850668 | AO46: 111930 | AP46: 11480 | AQ46: 861 | AR46: 42 | AS46: 1
A47: 43 | C47: 1 | D47: 43 | E47: 903 | F47: 12341 | G47: 123410 | H47: 962598 | I47: 6096454 | J47: 32224114 | K47: 145008513 | L47: 563921995 | M47: 1917334783 | N47: 5752004349 | O47: 1.533867826e+10 | P47: 3.657684817e+10 | Q47: 78378960360 | R47: 1.515326567e+11 | S47: 265182149218 | T47: 4.211716488e+11 | U47: 6.083590482e+11 | V47: 8.004724318e+11 | W47: 9.605669182e+11 | X47: 1.052049482e+12 | Y47: 1.052049482e+12 | Z47: 9.605669182e+11 | AA47: 8.004724318e+11 | AB47: 6.083590482e+11 | AC47: 4.211716488e+11 | AD47: 265182149218 | AE47: 1.515326567e+11 | AF47: 78378960360 | AG47: 3.657684817e+10 | AH47: 1.533867826e+10 | AI47: 5752004349 | AJ47: 1917334783 | AK47: 563921995 | AL47: 145008513 | AM47: 32224114 | AN47: 6096454 | AO47: 962598 | AP47: 123410 | AQ47: 12341 | AR47: 903 | AS47: 43 | AT47: 1
A48: 44 | C48: 1 | D48: 44 | E48: 946 | F48: 13244 | G48: 135751 | H48: 1086008 | I48: 7059052 | J48: 38320568 | K48: 177232627 | L48: 708930508 | M48: 2481256778 | N48: 7669339132 | O48: 21090682613 | P48: 5.191552643e+10 | Q48: 114955808528 | R48: 229911617056 | S48: 4.167148059e+11 | T48: 686353797976 | U48: 1.029530697e+12 | V48: 1.40883148e+12 | W48: 1.76103935e+12 | X48: 2.0126164e+12 | Y48: 2.104098964e+12 | Z48: 2.0126164e+12 | AA48: 1.76103935e+12 | AB48: 1.40883148e+12 | AC48: 1.029530697e+12 | AD48: 686353797976 | AE48: 4.167148059e+11 | AF48: 229911617056 | AG48: 114955808528 | AH48: 5.191552643e+10 | AI48: 21090682613 | AJ48: 7669339132 | AK48: 2481256778 | AL48: 708930508 | AM48: 177232627 | AN48: 38320568 | AO48: 7059052 | AP48: 1086008 | AQ48: 135751 | AR48: 13244 | AS48: 946 | AT48: 44 | AU48: 1
A49: 45 | C49: 1 | D49: 45 | E49: 990 | F49: 14190 | G49: 148995 | H49: 1221759 | I49: 8145060 | J49: 45379620 | K49: 215553195 | L49: 886163135 | M49: 3190187286 | N49: 10150595910 | O49: 2.876002174e+10 | P49: 73006209045 | Q49: 1.66871335e+11 | R49: 344867425584 | S49: 646626422970 | T49: 1.103068604e+12 | U49: 1.715884495e+12 | V49: 2.438362177e+12 | W49: 3.16987083e+12 | X49: 3.77365575e+12 | Y49: 4.116715364e+12 | Z49: 4.116715364e+12 | AA49: 3.77365575e+12 | AB49: 3.16987083e+12 | AC49: 2.438362177e+12 | AD49: 1.715884495e+12 | AE49: 1.103068604e+12 | AF49: 646626422970 | AG49: 344867425584 | AH49: 1.66871335e+11 | AI49: 73006209045 | AJ49: 2.876002174e+10 | AK49: 10150595910 | AL49: 3190187286 | AM49: 886163135 | AN49: 215553195 | AO49: 45379620 | AP49: 8145060 | AQ49: 1221759 | AR49: 148995 | AS49: 14190 | AT49: 990 | AU49: 45 | AV49: 1
A50: 46 | C50: 1 | D50: 46 | E50: 1035 | F50: 15180 | G50: 163185 | H50: 1370754 | I50: 9366819 | J50: 53524680 | K50: 260932815 | L50: 1101716330 | M50: 4076350421 | N50: 1.33407832e+10 | O50: 38910617655 | P50: 101766230790 | Q50: 239877544005 | R50: 5.117387605e+11 | S50: 991493848554 | T50: 1749695026860 | U50: 2.818953099e+12 | V50: 4.154246672e+12 | W50: 5.608233007e+12 | X50: 6.94352658e+12 | Y50: 7.890371114e+12 | Z50: 8.233430728e+12 | AA50: 7.890371114e+12 | AB50: 6.94352658e+12 | AC50: 5.608233007e+12 | AD50: 4.154246672e+12 | AE50: 2.818953099e+12 | AF50: 1749695026860 | AG50: 991493848554 | AH50: 5.117387605e+11 | AI50: 239877544005 | AJ50: 101766230790 | AK50: 38910617655 | AL50: 1.33407832e+10 | AM50: 4076350421 | AN50: 1101716330 | AO50: 260932815 | AP50: 53524680 | AQ50: 9366819 | AR50: 1370754 | AS50: 163185 | AT50: 15180 | AU50: 1035 | AV50: 46 | AW50: 1
A51: 47 | C51: 1 | D51: 47 | E51: 1081 | F51: 16215 | G51: 178365 | H51: 1533939 | I51: 10737573 | J51: 62891499 | K51: 314457495 | L51: 1362649145 | M51: 5178066751 | N51: 17417133617 | O51: 5.225140085e+10 | P51: 140676848445 | Q51: 341643774795 | R51: =COMBIN($A51,R$3) -> 7.516163045e+11 | S51: 1.503232609e+12 | T51: 2741188875414 | U51: 4568648125690 | V51: 6.973199771e+12 | W51: 9.762479679e+12 | X51: 1.255175959e+13 | Y51: 1.483389769e+13 | Z51: 1.612380184e+13 | AA51: 1.612380184e+13 | AB51: 1.483389769e+13 | AC51: 1.255175959e+13 | AD51: 9.762479679e+12 | AE51: 6.973199771e+12 | AF51: 4568648125690 | AG51: 2741188875414 | AH51: 1.503232609e+12 | AI51: 7.516163045e+11 | AJ51: 341643774795 | AK51: 140676848445 | AL51: 5.225140085e+10 | AM51: 17417133617 | AN51: 5178066751 | AO51: 1362649145 | AP51: 314457495 | AQ51: 62891499 | AR51: 10737573 | AS51: 1533939 | AT51: 178365 | AU51: 16215 | AV51: 1081 | AW51: 47 | AX51: =COMBIN($A51,AX$3) -> 1
A52: 48 | C52: =COMBIN($A52,C$3) -> 1 | D52: 48 | E52: 1128 | F52: 17296 | G52: 194580 | H52: 1712304 | I52: 12271512 | J52: 73629072 | K52: 377348994 | L52: 1677106640 | M52: 6540715896 | N52: 2.259520037e+10 | O52: 69668534468 | P52: 1.929282493e+11 | Q52: 482320623240 | R52: 1093260079344 | S52: 2.254848914e+12 | T52: 4.244421485e+12 | U52: 7309837001104 | V52: 11541847896480 | W52: 1.673567945e+13 | X52: 2.231423927e+13 | Y52: 2.738565728e+13 | Z52: 3.095769954e+13 | AA52: 3.224760368e+13 | AB52: 3.095769954e+13 | AC52: 2.738565728e+13 | AD52: 2.231423927e+13 | AE52: 1.673567945e+13 | AF52: 11541847896480 | AG52: 7309837001104 | AH52: 4.244421485e+12 | AI52: 2.254848914e+12 | AJ52: 1093260079344 | AK52: 482320623240 | AL52: 1.929282493e+11 | AM52: 69668534468 | AN52: 2.259520037e+10 | AO52: 6540715896 | AP52: 1677106640 | AQ52: 377348994 | AR52: 73629072 | AS52: 12271512 | AT52: 1712304 | AU52: 194580 | AV52: 17296 | AW52: 1128 | AX52: 48 | AY52: 1
A53: 49 | C53: 1 | D53: 49 | E53: 1176 | F53: 18424 | G53: 211876 | H53: 1906884 | I53: 13983816 | J53: 85900584 | K53: 450978066 | L53: 2054455634 | M53: 8217822536 | N53: 29135916264 | O53: 9.226373484e+10 | P53: 262596783764 | Q53: 6.752488725e+11 | R53: 1575580702584 | S53: 3348108992991 | T53: 6.499270398e+12 | U53: 1.155425849e+13 | V53: 18851684897584 | W53: 28277527346376 | X53: 3.904991872e+13 | Y53: 4.969989655e+13 | Z53: 5.834335682e+13 | AA53: 6.320530322e+13 | AB53: 6.320530322e+13 | AC53: 5.834335682e+13 | AD53: 4.969989655e+13 | AE53: 3.904991872e+13 | AF53: 28277527346376 | AG53: 18851684897584 | AH53: 1.155425849e+13 | AI53: 6.499270398e+12 | AJ53: 3348108992991 | AK53: 1575580702584 | AL53: 6.752488725e+11 | AM53: 262596783764 | AN53: 9.226373484e+10 | AO53: 29135916264 | AP53: 8217822536 | AQ53: 2054455634 | AR53: 450978066 | AS53: 85900584 | AT53: 13983816 | AU53: 1906884 | AV53: 211876 | AW53: 18424 | AX53: 1176 | AY53: 49 | AZ53: 1
A54: 50 | C54: 1 | D54: 50 | E54: 1225 | F54: 19600 | G54: 230300 | H54: 2118760 | I54: 15890700 | J54: 99884400 | K54: 536878650 | L54: 2505433700 | M54: 10272278170 | N54: 3.73537388e+10 | O54: 121399651100 | P54: 3.548605186e+11 | Q54: 937845656300 | R54: 2.250829575e+12 | S54: 4923689695575 | T54: 9847379391150 | U54: 1.805352888e+13 | V54: 3.040594338e+13 | W54: 47129212243960 | X54: 67327446062800 | Y54: 8.874981526e+13 | Z54: 1.080432534e+14 | AA54: 1.2154866e+14 | AB54: 1.264106064e+14 | AC54: 1.2154866e+14 | AD54: 1.080432534e+14 | AE54: 8.874981526e+13 | AF54: 67327446062800 | AG54: 47129212243960 | AH54: 3.040594338e+13 | AI54: 1.805352888e+13 | AJ54: 9847379391150 | AK54: 4923689695575 | AL54: 2.250829575e+12 | AM54: 937845656300 | AN54: 3.548605186e+11 | AO54: 121399651100 | AP54: 3.73537388e+10 | AQ54: 10272278170 | AR54: 2505433700 | AS54: 536878650 | AT54: 99884400 | AU54: 15890700 | AV54: 2118760 | AW54: 230300 | AX54: 19600 | AY54: 1225 | AZ54: 50 | BA54: =COMBIN($A54,BA$3) -> 1
